{"text_format":"3","workbook":"xlsx","n_sheets":3,"sheets":["NamedRanges","Config","ZoneTypes"],"not_rendered":{"macros":1,"defined_names":12},"read":"whole","date_system":"1900"}

{"sheet":"NamedRanges","index":0,"n_rows":33,"n_cols":12,"rows_kept":33,"hidden":true}
["ApplicationTypes","ACBrands","FloorLimits","NAList","Sensors_AC","Sensors_NoAC_UFH","Sensors_FloorProbe","Sensors_WiredCtrl","Sensors_ClimateSync","CylinderProbe","Sensors_None","SelectList"]
["PLEASE SELECT","PLEASE SELECT","PLEASE SELECT","N/A","PLEASE SELECT","PLEASE SELECT","Floor Probe","Wired Controller","ClimateSync Room Sensor","Cylinder Probe","N/A","PLEASE SELECT"]
["A","Daikin","TBA",null,"Room Thimble Sensor","Room Thimble Sensor"]
["B","Mitsubishi Electric","25 °C",null,"AC Unit","Wired Controller"]
["C","Mitsubishi Heavy","26 °C",null,"Wired Controller"]
["D","Toshiba","27 °C"]
["E","Sanyo","28 °C"]
["F","Panasonic","29 °C"]
["G","Samsung","30 °C"]
["H","Fujitsu","31 °C"]
["I","Hitachi","32 °C"]
["J","LG","33 °C"]
["K","Other","34 °C"]
["L",null,"35 °C"]
["M",null,"36 °C"]
["N",null,"37 °C"]
["O",null,"38 °C"]
["P",null,"39 °C"]
["Q",null,"40 °C"]
["R"]
["S"]
["FA"]
["FB"]
["FC"]
["FD"]
["FE"]
["FF"]
["FAB"]
["FBB"]
["FCB"]
["FDB"]
["FEB"]
["FFB"]

{"sheet":"Config","index":1,"n_rows":33,"n_cols":8,"rows_kept":33,"hidden":true}
["ZoneAppType","ZoneType","BrandList","UFHType","FloorProtReq","TempLimitList","TempControlled","SensorList"]
["PLEASE SELECT","First Select Zone Application Type","SelectList","First Select Zone Application Type","First Select Zone Application Type","SelectList","First Select Zone Application Type","SelectList"]
["A","Heating + Air Con","ACBrands","WET UFH","NO","NAList","Room Temp","Sensors_AC"]
["B","Heating + Air Con","ACBrands","WET UFH","YES","FloorLimits","Room Temp","Sensors_AC"]
["C","Heating + Air Con","ACBrands","ELECTRIC UFH","NO","NAList","Room Temp","Sensors_AC"]
["D","Heating + Air Con","ACBrands","ELECTRIC UFH","YES","FloorLimits","Room Temp","Sensors_AC"]
["E","Heating + Air Con","ACBrands","RADIATOR","N/A","NAList","Room Temp","Sensors_AC"]
["F","AC only","ACBrands","N/A","N/A","NAList","Room Temp","Sensors_AC"]
["G","Heating","NAList","WET UFH","NO","NAList","Room Temp","Sensors_NoAC_UFH"]
["H","Heating","NAList","WET UFH","YES","FloorLimits","Room Temp","Sensors_NoAC_UFH"]
["I","Heating","NAList","WET UFH","NO","NAList","Floor Temp","Sensors_FloorProbe"]
["J","Heating","NAList","ELECTRIC UFH","NO","NAList","Room Temp","Sensors_NoAC_UFH"]
["K","Heating","NAList","ELECTRIC UFH","YES","FloorLimits","Room Temp","Sensors_NoAC_UFH"]
["L","Heating","NAList","ELECTRIC UFH","NO","NAList","Floor Temp","Sensors_FloorProbe"]
["M","Heating","NAList","RADIATOR","N/A","NAList","Room Temp","Sensors_NoAC_UFH"]
["N","ON/OFF SWITCH","NAList","N/A","N/A","NAList","ON/OFF Only","Sensors_None"]
["O","Towel Rad ON/OFF Only","NAList","N/A","N/A","NAList","ON/OFF Only","Sensors_None"]
["P","Towel Rad Temp Control","NAList","RADIATOR","N/A","NAList","Room Temp","Sensors_NoAC_UFH"]
["Q","Hot Water ON/OFF","NAList","N/A","N/A","NAList","ON/OFF Only","Sensors_None"]
["R","Hot Water, Temp Control (Valve Only)","NAList","N/A","N/A","NAList","Cylinder Temp","CylinderProbe"]
["S","Hot Water, Temp Control (Valve & Boiler)","NAList","N/A","N/A","NAList","Cylinder Temp","CylinderProbe"]
["FA","Heating + FCU","ACBrands","WET UFH","NO","NAList","Room Temp","Sensors_WiredCtrl"]
["FB","Heating + FCU","ACBrands","WET UFH","YES","FloorLimits","Room Temp","Sensors_WiredCtrl"]
["FC","Heating + FCU","ACBrands","ELECTRIC UFH","NO","NAList","Room Temp","Sensors_WiredCtrl"]
["FD","Heating + FCU","ACBrands","ELECTRIC UFH","YES","FloorLimits","Room Temp","Sensors_WiredCtrl"]
["FE","Heating + FCU","ACBrands","RADIATOR","N/A","NAList","Room Temp","Sensors_WiredCtrl"]
["FF","FCU only","ACBrands","N/A","N/A","NAList","Room Temp","Sensors_WiredCtrl"]
["FAB","Heating + FCU","ACBrands","WET UFH","NO","NAList","Room Temp","Sensors_ClimateSync"]
["FBB","Heating + FCU","ACBrands","WET UFH","YES","FloorLimits","Room Temp","Sensors_ClimateSync"]
["FCB","Heating + FCU","ACBrands","ELECTRIC UFH","NO","NAList","Room Temp","Sensors_ClimateSync"]
["FDB","Heating + FCU","ACBrands","ELECTRIC UFH","YES","FloorLimits","Room Temp","Sensors_ClimateSync"]
["FEB","Heating + FCU","ACBrands","RADIATOR","N/A","NAList","Room Temp","Sensors_ClimateSync"]
["FFB","FCU only","ACBrands","N/A","N/A","NAList","Room Temp","Sensors_ClimateSync"]

{"sheet":"ZoneTypes","index":2,"n_rows":169,"n_cols":25,"rows_kept":169,"merged":[[7,20,7,24],[9,0,27,0],[40,0,40,24],[41,4,48,4],[49,4,56,4],[57,4,64,4],[65,4,72,4],[73,4,80,4],[81,4,88,4],[89,4,96,4],[97,4,104,4],[105,4,112,4],[113,4,120,4],[121,4,128,4],[129,4,136,4],[137,4,144,4],[145,4,152,4],[153,4,160,4],[161,4,168,4]]}
["Pruduced By"]
["Company/Business:","Insert text here"]
["Business Address:","Insert text here"]
["Telephone:","Insert text here"]
["Email:","Insert text here"]
["Website:","Insert text here"]
[]
["Client","Insert text here","Site / Project:","Insert text here",{"$nulls":16},"Commissioning Section"]
["Plot","Floor","Room","UFH Manifold","CS","CH-8 Wiring Centre Zone ID","Zone Application Type","Zone Type","Air Con Brand","Air Con Model","FCU Reference","UFH Type","UFH Zone Reference","Floor Finish (Optional)"," Floor Temperature Protection Limit Required","Floor Temperature Limit °C","Temperature to be Controlled","Zone Temp Sensor","Wired Controller","Notes","ClimateSync Zone Address","CooLinkHub Virtual Zone Address","AC Central Address","CMN Line"," Address for Automation Zone Driver"]
["Examples of Application Combinations Available","Ground","Lounge","M1",null,"1-1","A","Heating + Air Con","PLEASE SELECT",null,null,"WET UFH",null,null,"NO","N/A","Room Temp","PLEASE SELECT"]
[null,"1st","Master Bedroom","M2",null,"1-1","B","Heating + Air Con","PLEASE SELECT",null,null,"WET UFH",null,null,"YES","PLEASE SELECT","Room Temp","PLEASE SELECT"]
[null,"1st","Master EnSuite","M3",null,"1-1","C","Heating + Air Con","PLEASE SELECT",null,null,"ELECTRIC UFH",null,null,"NO","N/A","Room Temp","PLEASE SELECT"]
[{"$nulls":6},"D","Heating + Air Con","PLEASE SELECT",null,null,"ELECTRIC UFH",null,null,"YES","PLEASE SELECT","Room Temp","PLEASE SELECT"]
[{"$nulls":6},"E","Heating + Air Con","PLEASE SELECT",null,null,"RADIATOR",null,null,"N/A","N/A","Room Temp","PLEASE SELECT"]
[{"$nulls":6},"F","AC only","PLEASE SELECT",null,null,"N/A",null,null,"N/A","N/A","Room Temp","PLEASE SELECT"]
[{"$nulls":6},"G","Heating","N/A",null,null,"WET UFH",null,null,"NO","N/A","Room Temp","PLEASE SELECT"]
[{"$nulls":6},"H","Heating","N/A",null,null,"WET UFH",null,null,"YES","PLEASE SELECT","Room Temp","PLEASE SELECT"]
[{"$nulls":6},"I","Heating","N/A",null,null,"WET UFH",null,null,"NO","N/A","Floor Temp","Floor Probe"]
[{"$nulls":6},"J","Heating","N/A",null,null,"ELECTRIC UFH",null,null,"NO","N/A","Room Temp","PLEASE SELECT"]
[{"$nulls":6},"K","Heating","N/A",null,null,"ELECTRIC UFH",null,null,"YES","PLEASE SELECT","Room Temp","PLEASE SELECT"]
[{"$nulls":6},"L","Heating","N/A",null,null,"ELECTRIC UFH",null,null,"NO","N/A","Floor Temp","Floor Probe"]
[{"$nulls":6},"M","Heating","N/A",null,null,"RADIATOR",null,null,"N/A","N/A","Room Temp","PLEASE SELECT"]
[{"$nulls":6},"N","ON/OFF SWITCH","N/A",null,null,"N/A",null,null,"N/A","N/A","ON/OFF Only","N/A"]
[{"$nulls":6},"O","Towel Rad ON/OFF Only","N/A",null,null,"N/A",null,null,"N/A","N/A","ON/OFF Only","N/A"]
[{"$nulls":6},"P","Towel Rad Temp Control","N/A",null,null,"RADIATOR",null,null,"N/A","N/A","Room Temp","PLEASE SELECT"]
[{"$nulls":6},"Q","Hot Water ON/OFF","N/A",null,null,"N/A",null,null,"N/A","N/A","ON/OFF Only","N/A"]
[{"$nulls":6},"R","Hot Water, Temp Control (Valve Only)","N/A",null,null,"N/A",null,null,"N/A","N/A","Cylinder Temp","Cylinder Probe"]
[{"$nulls":6},"S","Hot Water, Temp Control (Valve & Boiler)","N/A",null,null,"N/A",null,null,"N/A","N/A","Cylinder Temp","Cylinder Probe"]
[{"$nulls":6},"FA","Heating + FCU","PLEASE SELECT",null,null,"WET UFH",null,null,"NO","N/A","Room Temp","Wired Controller"]
[{"$nulls":6},"FB","Heating + FCU","PLEASE SELECT",null,null,"WET UFH",null,null,"YES","PLEASE SELECT","Room Temp","Wired Controller"]
[{"$nulls":6},"FC","Heating + FCU","PLEASE SELECT",null,null,"ELECTRIC UFH",null,null,"NO","N/A","Room Temp","Wired Controller"]
[{"$nulls":6},"FD","Heating + FCU","PLEASE SELECT",null,null,"ELECTRIC UFH",null,null,"YES","PLEASE SELECT","Room Temp","Wired Controller"]
[{"$nulls":6},"FE","Heating + FCU","PLEASE SELECT",null,null,"RADIATOR",null,null,"N/A","N/A","Room Temp","Wired Controller"]
[{"$nulls":6},"FF","FCU Only","PLEASE SELECT",null,null,"N/A",null,null,"N/A","N/A","Room Temp","Wired Controller"]
[{"$nulls":6},"FAB","Heating + FCU","PLEASE SELECT",null,null,"WET UFH",null,null,"NO","N/A","Room Temp","ClimateSync Room Sensor"]
[{"$nulls":6},"FBB","Heating + FCU","PLEASE SELECT",null,null,"WET UFH",null,null,"YES","PLEASE SELECT","Room Temp","ClimateSync Room Sensor"]
[{"$nulls":6},"FCB","Heating + FCU","PLEASE SELECT",null,null,"ELECTRIC UFH",null,null,"NO","N/A","Room Temp","ClimateSync Room Sensor"]
[{"$nulls":6},"FDB","Heating + FCU","PLEASE SELECT",null,null,"ELECTRIC UFH",null,null,"YES","PLEASE SELECT","Room Temp","ClimateSync Room Sensor"]
[{"$nulls":6},"FEB","Heating + FCU","PLEASE SELECT",null,null,"RADIATOR",null,null,"N/A","N/A","Room Temp","ClimateSync Room Sensor"]
[{"$nulls":6},"FFB","FCU Only","PLEASE SELECT",null,null,"N/A",null,null,"N/A","N/A","Room Temp","ClimateSync Room Sensor"]
["1. Please Enable Macros.     2. Please add your project below this line.     3. Start by selecting the Zone Application Type."]
[{"$nulls":4},"ClimateSync 1","1-1","PLEASE SELECT",{"$f":"INDEX(Config!$B:$B, MATCH($G42, Config!$A:$A, 0))","v":"First Select Zone Application Type"},{"$nulls":3},{"$f":"INDEX(Config!$D:$D, MATCH($G42, Config!$A:$A, 0))","v":"First Select Zone Application Type"},null,null,{"$f":"INDEX(Config!$E:$E, MATCH($G42, Config!$A:$A, 0))","v":"First Select Zone Application Type"},null,{"$f":"INDEX(Config!$G:$G, MATCH($G42, Config!$A:$A, 0))","v":"First Select Zone Application Type"},{"$nulls":3},"001",{"$nulls":3},"001"]
[{"$nulls":5},"1-2","PLEASE SELECT",{"$f":"INDEX(Config!$B:$B, MATCH($G43, Config!$A:$A, 0))","v":"First Select Zone Application Type"},{"$nulls":3},{"$f":"INDEX(Config!$D:$D, MATCH($G43, Config!$A:$A, 0))","v":"First Select Zone Application Type"},null,null,{"$f":"INDEX(Config!$E:$E, MATCH($G43, Config!$A:$A, 0))","v":"First Select Zone Application Type"},null,{"$f":"INDEX(Config!$G:$G, MATCH($G43, Config!$A:$A, 0))","v":"First Select Zone Application Type"},{"$nulls":3},"002",{"$nulls":3},"002"]
[{"$nulls":5},"1-3","PLEASE SELECT",{"$f":"INDEX(Config!$B:$B, MATCH($G44, Config!$A:$A, 0))","v":"First Select Zone Application Type"},{"$nulls":3},{"$f":"INDEX(Config!$D:$D, MATCH($G44, Config!$A:$A, 0))","v":"First Select Zone Application Type"},null,null,{"$f":"INDEX(Config!$E:$E, MATCH($G44, Config!$A:$A, 0))","v":"First Select Zone Application Type"},null,{"$f":"INDEX(Config!$G:$G, MATCH($G44, Config!$A:$A, 0))","v":"First Select Zone Application Type"},{"$nulls":3},"003",{"$nulls":3},"003"]
[{"$nulls":5},"1-4","PLEASE SELECT",{"$f":"INDEX(Config!$B:$B, MATCH($G45, Config!$A:$A, 0))","v":"First Select Zone Application Type"},{"$nulls":3},{"$f":"INDEX(Config!$D:$D, MATCH($G45, Config!$A:$A, 0))","v":"First Select Zone Application Type"},null,null,{"$f":"INDEX(Config!$E:$E, MATCH($G45, Config!$A:$A, 0))","v":"First Select Zone Application Type"},null,{"$f":"INDEX(Config!$G:$G, MATCH($G45, Config!$A:$A, 0))","v":"First Select Zone Application Type"},{"$nulls":3},"004",{"$nulls":3},"004"]
[{"$nulls":5},"1-5","PLEASE SELECT",{"$f":"INDEX(Config!$B:$B, MATCH($G46, Config!$A:$A, 0))","v":"First Select Zone Application Type"},{"$nulls":3},{"$f":"INDEX(Config!$D:$D, MATCH($G46, Config!$A:$A, 0))","v":"First Select Zone Application Type"},null,null,{"$f":"INDEX(Config!$E:$E, MATCH($G46, Config!$A:$A, 0))","v":"First Select Zone Application Type"},null,{"$f":"INDEX(Config!$G:$G, MATCH($G46, Config!$A:$A, 0))","v":"First Select Zone Application Type"},{"$nulls":3},"005",{"$nulls":3},"005"]
[{"$nulls":5},"1-6","PLEASE SELECT",{"$f":"INDEX(Config!$B:$B, MATCH($G47, Config!$A:$A, 0))","v":"First Select Zone Application Type"},{"$nulls":3},{"$f":"INDEX(Config!$D:$D, MATCH($G47, Config!$A:$A, 0))","v":"First Select Zone Application Type"},null,null,{"$f":"INDEX(Config!$E:$E, MATCH($G47, Config!$A:$A, 0))","v":"First Select Zone Application Type"},null,{"$f":"INDEX(Config!$G:$G, MATCH($G47, Config!$A:$A, 0))","v":"First Select Zone Application Type"},{"$nulls":3},"006",{"$nulls":3},"006"]
[{"$nulls":5},"1-7","PLEASE SELECT",{"$f":"INDEX(Config!$B:$B, MATCH($G48, Config!$A:$A, 0))","v":"First Select Zone Application Type"},{"$nulls":3},{"$f":"INDEX(Config!$D:$D, MATCH($G48, Config!$A:$A, 0))","v":"First Select Zone Application Type"},null,null,{"$f":"INDEX(Config!$E:$E, MATCH($G48, Config!$A:$A, 0))","v":"First Select Zone Application Type"},null,{"$f":"INDEX(Config!$G:$G, MATCH($G48, Config!$A:$A, 0))","v":"First Select Zone Application Type"},{"$nulls":3},"007",{"$nulls":3},"007"]
[{"$nulls":5},"1-8","PLEASE SELECT",{"$f":"INDEX(Config!$B:$B, MATCH($G49, Config!$A:$A, 0))","v":"First Select Zone Application Type"},{"$nulls":3},{"$f":"INDEX(Config!$D:$D, MATCH($G49, Config!$A:$A, 0))","v":"First Select Zone Application Type"},null,null,{"$f":"INDEX(Config!$E:$E, MATCH($G49, Config!$A:$A, 0))","v":"First Select Zone Application Type"},null,{"$f":"INDEX(Config!$G:$G, MATCH($G49, Config!$A:$A, 0))","v":"First Select Zone Application Type"},{"$nulls":3},"008",{"$nulls":3},"008"]
[{"$nulls":4},"ClimateSync 2","2-1","PLEASE SELECT",{"$f":"INDEX(Config!$B:$B, MATCH($G50, Config!$A:$A, 0))","v":"First Select Zone Application Type"},{"$nulls":3},{"$f":"INDEX(Config!$D:$D, MATCH($G50, Config!$A:$A, 0))","v":"First Select Zone Application Type"},null,null,{"$f":"INDEX(Config!$E:$E, MATCH($G50, Config!$A:$A, 0))","v":"First Select Zone Application Type"},null,{"$f":"INDEX(Config!$G:$G, MATCH($G50, Config!$A:$A, 0))","v":"First Select Zone Application Type"},{"$nulls":3},"011",{"$nulls":3},"011"]
[{"$nulls":5},"2-2","PLEASE SELECT",{"$f":"INDEX(Config!$B:$B, MATCH($G51, Config!$A:$A, 0))","v":"First Select Zone Application Type"},{"$nulls":3},{"$f":"INDEX(Config!$D:$D, MATCH($G51, Config!$A:$A, 0))","v":"First Select Zone Application Type"},null,null,{"$f":"INDEX(Config!$E:$E, MATCH($G51, Config!$A:$A, 0))","v":"First Select Zone Application Type"},null,{"$f":"INDEX(Config!$G:$G, MATCH($G51, Config!$A:$A, 0))","v":"First Select Zone Application Type"},{"$nulls":3},"012",{"$nulls":3},"012"]
[{"$nulls":5},"2-3","PLEASE SELECT",{"$f":"INDEX(Config!$B:$B, MATCH($G52, Config!$A:$A, 0))","v":"First Select Zone Application Type"},{"$nulls":3},{"$f":"INDEX(Config!$D:$D, MATCH($G52, Config!$A:$A, 0))","v":"First Select Zone Application Type"},null,null,{"$f":"INDEX(Config!$E:$E, MATCH($G52, Config!$A:$A, 0))","v":"First Select Zone Application Type"},null,{"$f":"INDEX(Config!$G:$G, MATCH($G52, Config!$A:$A, 0))","v":"First Select Zone Application Type"},{"$nulls":3},"013",{"$nulls":3},"013"]
[{"$nulls":5},"2-4","PLEASE SELECT",{"$f":"INDEX(Config!$B:$B, MATCH($G53, Config!$A:$A, 0))","v":"First Select Zone Application Type"},{"$nulls":3},{"$f":"INDEX(Config!$D:$D, MATCH($G53, Config!$A:$A, 0))","v":"First Select Zone Application Type"},null,null,{"$f":"INDEX(Config!$E:$E, MATCH($G53, Config!$A:$A, 0))","v":"First Select Zone Application Type"},null,{"$f":"INDEX(Config!$G:$G, MATCH($G53, Config!$A:$A, 0))","v":"First Select Zone Application Type"},{"$nulls":3},"014",{"$nulls":3},"014"]
[{"$nulls":5},"2-5","PLEASE SELECT",{"$f":"INDEX(Config!$B:$B, MATCH($G54, Config!$A:$A, 0))","v":"First Select Zone Application Type"},{"$nulls":3},{"$f":"INDEX(Config!$D:$D, MATCH($G54, Config!$A:$A, 0))","v":"First Select Zone Application Type"},null,null,{"$f":"INDEX(Config!$E:$E, MATCH($G54, Config!$A:$A, 0))","v":"First Select Zone Application Type"},null,{"$f":"INDEX(Config!$G:$G, MATCH($G54, Config!$A:$A, 0))","v":"First Select Zone Application Type"},{"$nulls":3},"015",{"$nulls":3},"015"]
[{"$nulls":5},"2-6","PLEASE SELECT",{"$f":"INDEX(Config!$B:$B, MATCH($G55, Config!$A:$A, 0))","v":"First Select Zone Application Type"},{"$nulls":3},{"$f":"INDEX(Config!$D:$D, MATCH($G55, Config!$A:$A, 0))","v":"First Select Zone Application Type"},null,null,{"$f":"INDEX(Config!$E:$E, MATCH($G55, Config!$A:$A, 0))","v":"First Select Zone Application Type"},null,{"$f":"INDEX(Config!$G:$G, MATCH($G55, Config!$A:$A, 0))","v":"First Select Zone Application Type"},{"$nulls":3},"016",{"$nulls":3},"016"]
[{"$nulls":5},"2-7","PLEASE SELECT",{"$f":"INDEX(Config!$B:$B, MATCH($G56, Config!$A:$A, 0))","v":"First Select Zone Application Type"},{"$nulls":3},{"$f":"INDEX(Config!$D:$D, MATCH($G56, Config!$A:$A, 0))","v":"First Select Zone Application Type"},null,null,{"$f":"INDEX(Config!$E:$E, MATCH($G56, Config!$A:$A, 0))","v":"First Select Zone Application Type"},null,{"$f":"INDEX(Config!$G:$G, MATCH($G56, Config!$A:$A, 0))","v":"First Select Zone Application Type"},{"$nulls":3},"017",{"$nulls":3},"017"]
[{"$nulls":5},"2-8","PLEASE SELECT",{"$f":"INDEX(Config!$B:$B, MATCH($G57, Config!$A:$A, 0))","v":"First Select Zone Application Type"},{"$nulls":3},{"$f":"INDEX(Config!$D:$D, MATCH($G57, Config!$A:$A, 0))","v":"First Select Zone Application Type"},null,null,{"$f":"INDEX(Config!$E:$E, MATCH($G57, Config!$A:$A, 0))","v":"First Select Zone Application Type"},null,{"$f":"INDEX(Config!$G:$G, MATCH($G57, Config!$A:$A, 0))","v":"First Select Zone Application Type"},{"$nulls":3},"018",{"$nulls":3},"018"]
[{"$nulls":4},"ClimateSync 3","3-1","PLEASE SELECT",{"$f":"INDEX(Config!$B:$B, MATCH($G58, Config!$A:$A, 0))","v":"First Select Zone Application Type"},{"$nulls":3},{"$f":"INDEX(Config!$D:$D, MATCH($G58, Config!$A:$A, 0))","v":"First Select Zone Application Type"},null,null,{"$f":"INDEX(Config!$E:$E, MATCH($G58, Config!$A:$A, 0))","v":"First Select Zone Application Type"},null,{"$f":"INDEX(Config!$G:$G, MATCH($G58, Config!$A:$A, 0))","v":"First Select Zone Application Type"},{"$nulls":3},"021",{"$nulls":3},"021"]
[{"$nulls":5},"3-2","PLEASE SELECT",{"$f":"INDEX(Config!$B:$B, MATCH($G59, Config!$A:$A, 0))","v":"First Select Zone Application Type"},{"$nulls":3},{"$f":"INDEX(Config!$D:$D, MATCH($G59, Config!$A:$A, 0))","v":"First Select Zone Application Type"},null,null,{"$f":"INDEX(Config!$E:$E, MATCH($G59, Config!$A:$A, 0))","v":"First Select Zone Application Type"},null,{"$f":"INDEX(Config!$G:$G, MATCH($G59, Config!$A:$A, 0))","v":"First Select Zone Application Type"},{"$nulls":3},"022",{"$nulls":3},"022"]
[{"$nulls":5},"3-3","PLEASE SELECT",{"$f":"INDEX(Config!$B:$B, MATCH($G60, Config!$A:$A, 0))","v":"First Select Zone Application Type"},{"$nulls":3},{"$f":"INDEX(Config!$D:$D, MATCH($G60, Config!$A:$A, 0))","v":"First Select Zone Application Type"},null,null,{"$f":"INDEX(Config!$E:$E, MATCH($G60, Config!$A:$A, 0))","v":"First Select Zone Application Type"},null,{"$f":"INDEX(Config!$G:$G, MATCH($G60, Config!$A:$A, 0))","v":"First Select Zone Application Type"},{"$nulls":3},"023",{"$nulls":3},"023"]
[{"$nulls":5},"3-4","PLEASE SELECT",{"$f":"INDEX(Config!$B:$B, MATCH($G61, Config!$A:$A, 0))","v":"First Select Zone Application Type"},{"$nulls":3},{"$f":"INDEX(Config!$D:$D, MATCH($G61, Config!$A:$A, 0))","v":"First Select Zone Application Type"},null,null,{"$f":"INDEX(Config!$E:$E, MATCH($G61, Config!$A:$A, 0))","v":"First Select Zone Application Type"},null,{"$f":"INDEX(Config!$G:$G, MATCH($G61, Config!$A:$A, 0))","v":"First Select Zone Application Type"},{"$nulls":3},"024",{"$nulls":3},"024"]
[{"$nulls":5},"3-5","PLEASE SELECT",{"$f":"INDEX(Config!$B:$B, MATCH($G62, Config!$A:$A, 0))","v":"First Select Zone Application Type"},{"$nulls":3},{"$f":"INDEX(Config!$D:$D, MATCH($G62, Config!$A:$A, 0))","v":"First Select Zone Application Type"},null,null,{"$f":"INDEX(Config!$E:$E, MATCH($G62, Config!$A:$A, 0))","v":"First Select Zone Application Type"},null,{"$f":"INDEX(Config!$G:$G, MATCH($G62, Config!$A:$A, 0))","v":"First Select Zone Application Type"},{"$nulls":3},"025",{"$nulls":3},"025"]
[{"$nulls":5},"3-6","PLEASE SELECT",{"$f":"INDEX(Config!$B:$B, MATCH($G63, Config!$A:$A, 0))","v":"First Select Zone Application Type"},{"$nulls":3},{"$f":"INDEX(Config!$D:$D, MATCH($G63, Config!$A:$A, 0))","v":"First Select Zone Application Type"},null,null,{"$f":"INDEX(Config!$E:$E, MATCH($G63, Config!$A:$A, 0))","v":"First Select Zone Application Type"},null,{"$f":"INDEX(Config!$G:$G, MATCH($G63, Config!$A:$A, 0))","v":"First Select Zone Application Type"},{"$nulls":3},"026",{"$nulls":3},"026"]
[{"$nulls":5},"3-7","PLEASE SELECT",{"$f":"INDEX(Config!$B:$B, MATCH($G64, Config!$A:$A, 0))","v":"First Select Zone Application Type"},{"$nulls":3},{"$f":"INDEX(Config!$D:$D, MATCH($G64, Config!$A:$A, 0))","v":"First Select Zone Application Type"},null,null,{"$f":"INDEX(Config!$E:$E, MATCH($G64, Config!$A:$A, 0))","v":"First Select Zone Application Type"},null,{"$f":"INDEX(Config!$G:$G, MATCH($G64, Config!$A:$A, 0))","v":"First Select Zone Application Type"},{"$nulls":3},"027",{"$nulls":3},"027"]
[{"$nulls":5},"3-8","PLEASE SELECT",{"$f":"INDEX(Config!$B:$B, MATCH($G65, Config!$A:$A, 0))","v":"First Select Zone Application Type"},{"$nulls":3},{"$f":"INDEX(Config!$D:$D, MATCH($G65, Config!$A:$A, 0))","v":"First Select Zone Application Type"},null,null,{"$f":"INDEX(Config!$E:$E, MATCH($G65, Config!$A:$A, 0))","v":"First Select Zone Application Type"},null,{"$f":"INDEX(Config!$G:$G, MATCH($G65, Config!$A:$A, 0))","v":"First Select Zone Application Type"},{"$nulls":3},"028",{"$nulls":3},"028"]
[{"$nulls":4},"ClimateSync 4","4-1","PLEASE SELECT",{"$f":"INDEX(Config!$B:$B, MATCH($G66, Config!$A:$A, 0))","v":"First Select Zone Application Type"},{"$nulls":3},{"$f":"INDEX(Config!$D:$D, MATCH($G66, Config!$A:$A, 0))","v":"First Select Zone Application Type"},null,null,{"$f":"INDEX(Config!$E:$E, MATCH($G66, Config!$A:$A, 0))","v":"First Select Zone Application Type"},null,{"$f":"INDEX(Config!$G:$G, MATCH($G66, Config!$A:$A, 0))","v":"First Select Zone Application Type"},{"$nulls":3},"031",{"$nulls":3},"031"]
[{"$nulls":5},"4-2","PLEASE SELECT",{"$f":"INDEX(Config!$B:$B, MATCH($G67, Config!$A:$A, 0))","v":"First Select Zone Application Type"},{"$nulls":3},{"$f":"INDEX(Config!$D:$D, MATCH($G67, Config!$A:$A, 0))","v":"First Select Zone Application Type"},null,null,{"$f":"INDEX(Config!$E:$E, MATCH($G67, Config!$A:$A, 0))","v":"First Select Zone Application Type"},null,{"$f":"INDEX(Config!$G:$G, MATCH($G67, Config!$A:$A, 0))","v":"First Select Zone Application Type"},{"$nulls":3},"032",{"$nulls":3},"032"]
[{"$nulls":5},"4-3","PLEASE SELECT",{"$f":"INDEX(Config!$B:$B, MATCH($G68, Config!$A:$A, 0))","v":"First Select Zone Application Type"},{"$nulls":3},{"$f":"INDEX(Config!$D:$D, MATCH($G68, Config!$A:$A, 0))","v":"First Select Zone Application Type"},null,null,{"$f":"INDEX(Config!$E:$E, MATCH($G68, Config!$A:$A, 0))","v":"First Select Zone Application Type"},null,{"$f":"INDEX(Config!$G:$G, MATCH($G68, Config!$A:$A, 0))","v":"First Select Zone Application Type"},{"$nulls":3},"033",{"$nulls":3},"033"]
[{"$nulls":5},"4-4","PLEASE SELECT",{"$f":"INDEX(Config!$B:$B, MATCH($G69, Config!$A:$A, 0))","v":"First Select Zone Application Type"},{"$nulls":3},{"$f":"INDEX(Config!$D:$D, MATCH($G69, Config!$A:$A, 0))","v":"First Select Zone Application Type"},null,null,{"$f":"INDEX(Config!$E:$E, MATCH($G69, Config!$A:$A, 0))","v":"First Select Zone Application Type"},null,{"$f":"INDEX(Config!$G:$G, MATCH($G69, Config!$A:$A, 0))","v":"First Select Zone Application Type"},{"$nulls":3},"034",{"$nulls":3},"034"]
[{"$nulls":5},"4-5","PLEASE SELECT",{"$f":"INDEX(Config!$B:$B, MATCH($G70, Config!$A:$A, 0))","v":"First Select Zone Application Type"},{"$nulls":3},{"$f":"INDEX(Config!$D:$D, MATCH($G70, Config!$A:$A, 0))","v":"First Select Zone Application Type"},null,null,{"$f":"INDEX(Config!$E:$E, MATCH($G70, Config!$A:$A, 0))","v":"First Select Zone Application Type"},null,{"$f":"INDEX(Config!$G:$G, MATCH($G70, Config!$A:$A, 0))","v":"First Select Zone Application Type"},{"$nulls":3},"035",{"$nulls":3},"035"]
[{"$nulls":5},"4-6","PLEASE SELECT",{"$f":"INDEX(Config!$B:$B, MATCH($G71, Config!$A:$A, 0))","v":"First Select Zone Application Type"},{"$nulls":3},{"$f":"INDEX(Config!$D:$D, MATCH($G71, Config!$A:$A, 0))","v":"First Select Zone Application Type"},null,null,{"$f":"INDEX(Config!$E:$E, MATCH($G71, Config!$A:$A, 0))","v":"First Select Zone Application Type"},null,{"$f":"INDEX(Config!$G:$G, MATCH($G71, Config!$A:$A, 0))","v":"First Select Zone Application Type"},{"$nulls":3},"036",{"$nulls":3},"036"]
[{"$nulls":5},"4-7","PLEASE SELECT",{"$f":"INDEX(Config!$B:$B, MATCH($G72, Config!$A:$A, 0))","v":"First Select Zone Application Type"},{"$nulls":3},{"$f":"INDEX(Config!$D:$D, MATCH($G72, Config!$A:$A, 0))","v":"First Select Zone Application Type"},null,null,{"$f":"INDEX(Config!$E:$E, MATCH($G72, Config!$A:$A, 0))","v":"First Select Zone Application Type"},null,{"$f":"INDEX(Config!$G:$G, MATCH($G72, Config!$A:$A, 0))","v":"First Select Zone Application Type"},{"$nulls":3},"037",{"$nulls":3},"037"]
[{"$nulls":5},"4-8","PLEASE SELECT",{"$f":"INDEX(Config!$B:$B, MATCH($G73, Config!$A:$A, 0))","v":"First Select Zone Application Type"},{"$nulls":3},{"$f":"INDEX(Config!$D:$D, MATCH($G73, Config!$A:$A, 0))","v":"First Select Zone Application Type"},null,null,{"$f":"INDEX(Config!$E:$E, MATCH($G73, Config!$A:$A, 0))","v":"First Select Zone Application Type"},null,{"$f":"INDEX(Config!$G:$G, MATCH($G73, Config!$A:$A, 0))","v":"First Select Zone Application Type"},{"$nulls":3},"038",{"$nulls":3},"038"]
[{"$nulls":4},"ClimateSync 5","5-1","PLEASE SELECT",{"$f":"INDEX(Config!$B:$B, MATCH($G74, Config!$A:$A, 0))","v":"First Select Zone Application Type"},{"$nulls":3},{"$f":"INDEX(Config!$D:$D, MATCH($G74, Config!$A:$A, 0))","v":"First Select Zone Application Type"},null,null,{"$f":"INDEX(Config!$E:$E, MATCH($G74, Config!$A:$A, 0))","v":"First Select Zone Application Type"},null,{"$f":"INDEX(Config!$G:$G, MATCH($G74, Config!$A:$A, 0))","v":"First Select Zone Application Type"},{"$nulls":3},"041",{"$nulls":3},"041"]
[{"$nulls":5},"5-2","PLEASE SELECT",{"$f":"INDEX(Config!$B:$B, MATCH($G75, Config!$A:$A, 0))","v":"First Select Zone Application Type"},{"$nulls":3},{"$f":"INDEX(Config!$D:$D, MATCH($G75, Config!$A:$A, 0))","v":"First Select Zone Application Type"},null,null,{"$f":"INDEX(Config!$E:$E, MATCH($G75, Config!$A:$A, 0))","v":"First Select Zone Application Type"},null,{"$f":"INDEX(Config!$G:$G, MATCH($G75, Config!$A:$A, 0))","v":"First Select Zone Application Type"},{"$nulls":3},"042",{"$nulls":3},"042"]
[{"$nulls":5},"5-3","PLEASE SELECT",{"$f":"INDEX(Config!$B:$B, MATCH($G76, Config!$A:$A, 0))","v":"First Select Zone Application Type"},{"$nulls":3},{"$f":"INDEX(Config!$D:$D, MATCH($G76, Config!$A:$A, 0))","v":"First Select Zone Application Type"},null,null,{"$f":"INDEX(Config!$E:$E, MATCH($G76, Config!$A:$A, 0))","v":"First Select Zone Application Type"},null,{"$f":"INDEX(Config!$G:$G, MATCH($G76, Config!$A:$A, 0))","v":"First Select Zone Application Type"},{"$nulls":3},"043",{"$nulls":3},"043"]
[{"$nulls":5},"5-4","PLEASE SELECT",{"$f":"INDEX(Config!$B:$B, MATCH($G77, Config!$A:$A, 0))","v":"First Select Zone Application Type"},{"$nulls":3},{"$f":"INDEX(Config!$D:$D, MATCH($G77, Config!$A:$A, 0))","v":"First Select Zone Application Type"},null,null,{"$f":"INDEX(Config!$E:$E, MATCH($G77, Config!$A:$A, 0))","v":"First Select Zone Application Type"},null,{"$f":"INDEX(Config!$G:$G, MATCH($G77, Config!$A:$A, 0))","v":"First Select Zone Application Type"},{"$nulls":3},"044",{"$nulls":3},"044"]
[{"$nulls":5},"5-5","PLEASE SELECT",{"$f":"INDEX(Config!$B:$B, MATCH($G78, Config!$A:$A, 0))","v":"First Select Zone Application Type"},{"$nulls":3},{"$f":"INDEX(Config!$D:$D, MATCH($G78, Config!$A:$A, 0))","v":"First Select Zone Application Type"},null,null,{"$f":"INDEX(Config!$E:$E, MATCH($G78, Config!$A:$A, 0))","v":"First Select Zone Application Type"},null,{"$f":"INDEX(Config!$G:$G, MATCH($G78, Config!$A:$A, 0))","v":"First Select Zone Application Type"},{"$nulls":3},"045",{"$nulls":3},"045"]
[{"$nulls":5},"5-6","PLEASE SELECT",{"$f":"INDEX(Config!$B:$B, MATCH($G79, Config!$A:$A, 0))","v":"First Select Zone Application Type"},{"$nulls":3},{"$f":"INDEX(Config!$D:$D, MATCH($G79, Config!$A:$A, 0))","v":"First Select Zone Application Type"},null,null,{"$f":"INDEX(Config!$E:$E, MATCH($G79, Config!$A:$A, 0))","v":"First Select Zone Application Type"},null,{"$f":"INDEX(Config!$G:$G, MATCH($G79, Config!$A:$A, 0))","v":"First Select Zone Application Type"},{"$nulls":3},"046",{"$nulls":3},"046"]
[{"$nulls":5},"5-7","PLEASE SELECT",{"$f":"INDEX(Config!$B:$B, MATCH($G80, Config!$A:$A, 0))","v":"First Select Zone Application Type"},{"$nulls":3},{"$f":"INDEX(Config!$D:$D, MATCH($G80, Config!$A:$A, 0))","v":"First Select Zone Application Type"},null,null,{"$f":"INDEX(Config!$E:$E, MATCH($G80, Config!$A:$A, 0))","v":"First Select Zone Application Type"},null,{"$f":"INDEX(Config!$G:$G, MATCH($G80, Config!$A:$A, 0))","v":"First Select Zone Application Type"},{"$nulls":3},"047",{"$nulls":3},"047"]
[{"$nulls":5},"5-8","PLEASE SELECT",{"$f":"INDEX(Config!$B:$B, MATCH($G81, Config!$A:$A, 0))","v":"First Select Zone Application Type"},{"$nulls":3},{"$f":"INDEX(Config!$D:$D, MATCH($G81, Config!$A:$A, 0))","v":"First Select Zone Application Type"},null,null,{"$f":"INDEX(Config!$E:$E, MATCH($G81, Config!$A:$A, 0))","v":"First Select Zone Application Type"},null,{"$f":"INDEX(Config!$G:$G, MATCH($G81, Config!$A:$A, 0))","v":"First Select Zone Application Type"},{"$nulls":3},"048",{"$nulls":3},"048"]
[{"$nulls":4},"ClimateSync 6","6-1","PLEASE SELECT",{"$f":"INDEX(Config!$B:$B, MATCH($G82, Config!$A:$A, 0))","v":"First Select Zone Application Type"},{"$nulls":3},{"$f":"INDEX(Config!$D:$D, MATCH($G82, Config!$A:$A, 0))","v":"First Select Zone Application Type"},null,null,{"$f":"INDEX(Config!$E:$E, MATCH($G82, Config!$A:$A, 0))","v":"First Select Zone Application Type"},null,{"$f":"INDEX(Config!$G:$G, MATCH($G82, Config!$A:$A, 0))","v":"First Select Zone Application Type"},{"$nulls":3},"051",{"$nulls":3},"051"]
[{"$nulls":5},"6-2","PLEASE SELECT",{"$f":"INDEX(Config!$B:$B, MATCH($G83, Config!$A:$A, 0))","v":"First Select Zone Application Type"},{"$nulls":3},{"$f":"INDEX(Config!$D:$D, MATCH($G83, Config!$A:$A, 0))","v":"First Select Zone Application Type"},null,null,{"$f":"INDEX(Config!$E:$E, MATCH($G83, Config!$A:$A, 0))","v":"First Select Zone Application Type"},null,{"$f":"INDEX(Config!$G:$G, MATCH($G83, Config!$A:$A, 0))","v":"First Select Zone Application Type"},{"$nulls":3},"052",{"$nulls":3},"052"]
[{"$nulls":5},"6-3","PLEASE SELECT",{"$f":"INDEX(Config!$B:$B, MATCH($G84, Config!$A:$A, 0))","v":"First Select Zone Application Type"},{"$nulls":3},{"$f":"INDEX(Config!$D:$D, MATCH($G84, Config!$A:$A, 0))","v":"First Select Zone Application Type"},null,null,{"$f":"INDEX(Config!$E:$E, MATCH($G84, Config!$A:$A, 0))","v":"First Select Zone Application Type"},null,{"$f":"INDEX(Config!$G:$G, MATCH($G84, Config!$A:$A, 0))","v":"First Select Zone Application Type"},{"$nulls":3},"053",{"$nulls":3},"053"]
[{"$nulls":5},"6-4","PLEASE SELECT",{"$f":"INDEX(Config!$B:$B, MATCH($G85, Config!$A:$A, 0))","v":"First Select Zone Application Type"},{"$nulls":3},{"$f":"INDEX(Config!$D:$D, MATCH($G85, Config!$A:$A, 0))","v":"First Select Zone Application Type"},null,null,{"$f":"INDEX(Config!$E:$E, MATCH($G85, Config!$A:$A, 0))","v":"First Select Zone Application Type"},null,{"$f":"INDEX(Config!$G:$G, MATCH($G85, Config!$A:$A, 0))","v":"First Select Zone Application Type"},{"$nulls":3},"054",{"$nulls":3},"054"]
[{"$nulls":5},"6-5","PLEASE SELECT",{"$f":"INDEX(Config!$B:$B, MATCH($G86, Config!$A:$A, 0))","v":"First Select Zone Application Type"},{"$nulls":3},{"$f":"INDEX(Config!$D:$D, MATCH($G86, Config!$A:$A, 0))","v":"First Select Zone Application Type"},null,null,{"$f":"INDEX(Config!$E:$E, MATCH($G86, Config!$A:$A, 0))","v":"First Select Zone Application Type"},null,{"$f":"INDEX(Config!$G:$G, MATCH($G86, Config!$A:$A, 0))","v":"First Select Zone Application Type"},{"$nulls":3},"055",{"$nulls":3},"055"]
[{"$nulls":5},"6-6","PLEASE SELECT",{"$f":"INDEX(Config!$B:$B, MATCH($G87, Config!$A:$A, 0))","v":"First Select Zone Application Type"},{"$nulls":3},{"$f":"INDEX(Config!$D:$D, MATCH($G87, Config!$A:$A, 0))","v":"First Select Zone Application Type"},null,null,{"$f":"INDEX(Config!$E:$E, MATCH($G87, Config!$A:$A, 0))","v":"First Select Zone Application Type"},null,{"$f":"INDEX(Config!$G:$G, MATCH($G87, Config!$A:$A, 0))","v":"First Select Zone Application Type"},{"$nulls":3},"056",{"$nulls":3},"056"]
[{"$nulls":5},"6-7","PLEASE SELECT",{"$f":"INDEX(Config!$B:$B, MATCH($G88, Config!$A:$A, 0))","v":"First Select Zone Application Type"},{"$nulls":3},{"$f":"INDEX(Config!$D:$D, MATCH($G88, Config!$A:$A, 0))","v":"First Select Zone Application Type"},null,null,{"$f":"INDEX(Config!$E:$E, MATCH($G88, Config!$A:$A, 0))","v":"First Select Zone Application Type"},null,{"$f":"INDEX(Config!$G:$G, MATCH($G88, Config!$A:$A, 0))","v":"First Select Zone Application Type"},{"$nulls":3},"057",{"$nulls":3},"057"]
[{"$nulls":5},"6-8","PLEASE SELECT",{"$f":"INDEX(Config!$B:$B, MATCH($G89, Config!$A:$A, 0))","v":"First Select Zone Application Type"},{"$nulls":3},{"$f":"INDEX(Config!$D:$D, MATCH($G89, Config!$A:$A, 0))","v":"First Select Zone Application Type"},null,null,{"$f":"INDEX(Config!$E:$E, MATCH($G89, Config!$A:$A, 0))","v":"First Select Zone Application Type"},null,{"$f":"INDEX(Config!$G:$G, MATCH($G89, Config!$A:$A, 0))","v":"First Select Zone Application Type"},{"$nulls":3},"058",{"$nulls":3},"058"]
[{"$nulls":4},"ClimateSync 7","7-1","PLEASE SELECT",{"$f":"INDEX(Config!$B:$B, MATCH($G90, Config!$A:$A, 0))","v":"First Select Zone Application Type"},{"$nulls":3},{"$f":"INDEX(Config!$D:$D, MATCH($G90, Config!$A:$A, 0))","v":"First Select Zone Application Type"},null,null,{"$f":"INDEX(Config!$E:$E, MATCH($G90, Config!$A:$A, 0))","v":"First Select Zone Application Type"},null,{"$f":"INDEX(Config!$G:$G, MATCH($G90, Config!$A:$A, 0))","v":"First Select Zone Application Type"},{"$nulls":3},"061",{"$nulls":3},"061"]
[{"$nulls":5},"7-2","PLEASE SELECT",{"$f":"INDEX(Config!$B:$B, MATCH($G91, Config!$A:$A, 0))","v":"First Select Zone Application Type"},{"$nulls":3},{"$f":"INDEX(Config!$D:$D, MATCH($G91, Config!$A:$A, 0))","v":"First Select Zone Application Type"},null,null,{"$f":"INDEX(Config!$E:$E, MATCH($G91, Config!$A:$A, 0))","v":"First Select Zone Application Type"},null,{"$f":"INDEX(Config!$G:$G, MATCH($G91, Config!$A:$A, 0))","v":"First Select Zone Application Type"},{"$nulls":3},"062",{"$nulls":3},"062"]
[{"$nulls":5},"7-3","PLEASE SELECT",{"$f":"INDEX(Config!$B:$B, MATCH($G92, Config!$A:$A, 0))","v":"First Select Zone Application Type"},{"$nulls":3},{"$f":"INDEX(Config!$D:$D, MATCH($G92, Config!$A:$A, 0))","v":"First Select Zone Application Type"},null,null,{"$f":"INDEX(Config!$E:$E, MATCH($G92, Config!$A:$A, 0))","v":"First Select Zone Application Type"},null,{"$f":"INDEX(Config!$G:$G, MATCH($G92, Config!$A:$A, 0))","v":"First Select Zone Application Type"},{"$nulls":3},"063",{"$nulls":3},"063"]
[{"$nulls":5},"7-4","PLEASE SELECT",{"$f":"INDEX(Config!$B:$B, MATCH($G93, Config!$A:$A, 0))","v":"First Select Zone Application Type"},{"$nulls":3},{"$f":"INDEX(Config!$D:$D, MATCH($G93, Config!$A:$A, 0))","v":"First Select Zone Application Type"},null,null,{"$f":"INDEX(Config!$E:$E, MATCH($G93, Config!$A:$A, 0))","v":"First Select Zone Application Type"},null,{"$f":"INDEX(Config!$G:$G, MATCH($G93, Config!$A:$A, 0))","v":"First Select Zone Application Type"},{"$nulls":3},"064",{"$nulls":3},"064"]
[{"$nulls":5},"7-5","PLEASE SELECT",{"$f":"INDEX(Config!$B:$B, MATCH($G94, Config!$A:$A, 0))","v":"First Select Zone Application Type"},{"$nulls":3},{"$f":"INDEX(Config!$D:$D, MATCH($G94, Config!$A:$A, 0))","v":"First Select Zone Application Type"},null,null,{"$f":"INDEX(Config!$E:$E, MATCH($G94, Config!$A:$A, 0))","v":"First Select Zone Application Type"},null,{"$f":"INDEX(Config!$G:$G, MATCH($G94, Config!$A:$A, 0))","v":"First Select Zone Application Type"},{"$nulls":3},"065",{"$nulls":3},"065"]
[{"$nulls":5},"7-6","PLEASE SELECT",{"$f":"INDEX(Config!$B:$B, MATCH($G95, Config!$A:$A, 0))","v":"First Select Zone Application Type"},{"$nulls":3},{"$f":"INDEX(Config!$D:$D, MATCH($G95, Config!$A:$A, 0))","v":"First Select Zone Application Type"},null,null,{"$f":"INDEX(Config!$E:$E, MATCH($G95, Config!$A:$A, 0))","v":"First Select Zone Application Type"},null,{"$f":"INDEX(Config!$G:$G, MATCH($G95, Config!$A:$A, 0))","v":"First Select Zone Application Type"},{"$nulls":3},"066",{"$nulls":3},"066"]
[{"$nulls":5},"7-7","PLEASE SELECT",{"$f":"INDEX(Config!$B:$B, MATCH($G96, Config!$A:$A, 0))","v":"First Select Zone Application Type"},{"$nulls":3},{"$f":"INDEX(Config!$D:$D, MATCH($G96, Config!$A:$A, 0))","v":"First Select Zone Application Type"},null,null,{"$f":"INDEX(Config!$E:$E, MATCH($G96, Config!$A:$A, 0))","v":"First Select Zone Application Type"},null,{"$f":"INDEX(Config!$G:$G, MATCH($G96, Config!$A:$A, 0))","v":"First Select Zone Application Type"},{"$nulls":3},"067",{"$nulls":3},"067"]
[{"$nulls":5},"7-8","PLEASE SELECT",{"$f":"INDEX(Config!$B:$B, MATCH($G97, Config!$A:$A, 0))","v":"First Select Zone Application Type"},{"$nulls":3},{"$f":"INDEX(Config!$D:$D, MATCH($G97, Config!$A:$A, 0))","v":"First Select Zone Application Type"},null,null,{"$f":"INDEX(Config!$E:$E, MATCH($G97, Config!$A:$A, 0))","v":"First Select Zone Application Type"},null,{"$f":"INDEX(Config!$G:$G, MATCH($G97, Config!$A:$A, 0))","v":"First Select Zone Application Type"},{"$nulls":3},"068",{"$nulls":3},"068"]
[{"$nulls":4},"ClimateSync 8","8-1","PLEASE SELECT",{"$f":"INDEX(Config!$B:$B, MATCH($G98, Config!$A:$A, 0))","v":"First Select Zone Application Type"},{"$nulls":3},{"$f":"INDEX(Config!$D:$D, MATCH($G98, Config!$A:$A, 0))","v":"First Select Zone Application Type"},null,null,{"$f":"INDEX(Config!$E:$E, MATCH($G98, Config!$A:$A, 0))","v":"First Select Zone Application Type"},null,{"$f":"INDEX(Config!$G:$G, MATCH($G98, Config!$A:$A, 0))","v":"First Select Zone Application Type"},{"$nulls":3},"071",{"$nulls":3},"071"]
[{"$nulls":5},"8-2","PLEASE SELECT",{"$f":"INDEX(Config!$B:$B, MATCH($G99, Config!$A:$A, 0))","v":"First Select Zone Application Type"},{"$nulls":3},{"$f":"INDEX(Config!$D:$D, MATCH($G99, Config!$A:$A, 0))","v":"First Select Zone Application Type"},null,null,{"$f":"INDEX(Config!$E:$E, MATCH($G99, Config!$A:$A, 0))","v":"First Select Zone Application Type"},null,{"$f":"INDEX(Config!$G:$G, MATCH($G99, Config!$A:$A, 0))","v":"First Select Zone Application Type"},{"$nulls":3},"072",{"$nulls":3},"072"]
[{"$nulls":5},"8-3","PLEASE SELECT",{"$f":"INDEX(Config!$B:$B, MATCH($G100, Config!$A:$A, 0))","v":"First Select Zone Application Type"},{"$nulls":3},{"$f":"INDEX(Config!$D:$D, MATCH($G100, Config!$A:$A, 0))","v":"First Select Zone Application Type"},null,null,{"$f":"INDEX(Config!$E:$E, MATCH($G100, Config!$A:$A, 0))","v":"First Select Zone Application Type"},null,{"$f":"INDEX(Config!$G:$G, MATCH($G100, Config!$A:$A, 0))","v":"First Select Zone Application Type"},{"$nulls":3},"073",{"$nulls":3},"073"]
[{"$nulls":5},"8-4","PLEASE SELECT",{"$f":"INDEX(Config!$B:$B, MATCH($G101, Config!$A:$A, 0))","v":"First Select Zone Application Type"},{"$nulls":3},{"$f":"INDEX(Config!$D:$D, MATCH($G101, Config!$A:$A, 0))","v":"First Select Zone Application Type"},null,null,{"$f":"INDEX(Config!$E:$E, MATCH($G101, Config!$A:$A, 0))","v":"First Select Zone Application Type"},null,{"$f":"INDEX(Config!$G:$G, MATCH($G101, Config!$A:$A, 0))","v":"First Select Zone Application Type"},{"$nulls":3},"074",{"$nulls":3},"074"]
[{"$nulls":5},"8-5","PLEASE SELECT",{"$f":"INDEX(Config!$B:$B, MATCH($G102, Config!$A:$A, 0))","v":"First Select Zone Application Type"},{"$nulls":3},{"$f":"INDEX(Config!$D:$D, MATCH($G102, Config!$A:$A, 0))","v":"First Select Zone Application Type"},null,null,{"$f":"INDEX(Config!$E:$E, MATCH($G102, Config!$A:$A, 0))","v":"First Select Zone Application Type"},null,{"$f":"INDEX(Config!$G:$G, MATCH($G102, Config!$A:$A, 0))","v":"First Select Zone Application Type"},{"$nulls":3},"075",{"$nulls":3},"075"]
[{"$nulls":5},"8-6","PLEASE SELECT",{"$f":"INDEX(Config!$B:$B, MATCH($G103, Config!$A:$A, 0))","v":"First Select Zone Application Type"},{"$nulls":3},{"$f":"INDEX(Config!$D:$D, MATCH($G103, Config!$A:$A, 0))","v":"First Select Zone Application Type"},null,null,{"$f":"INDEX(Config!$E:$E, MATCH($G103, Config!$A:$A, 0))","v":"First Select Zone Application Type"},null,{"$f":"INDEX(Config!$G:$G, MATCH($G103, Config!$A:$A, 0))","v":"First Select Zone Application Type"},{"$nulls":3},"076",{"$nulls":3},"076"]
[{"$nulls":5},"8-7","PLEASE SELECT",{"$f":"INDEX(Config!$B:$B, MATCH($G104, Config!$A:$A, 0))","v":"First Select Zone Application Type"},{"$nulls":3},{"$f":"INDEX(Config!$D:$D, MATCH($G104, Config!$A:$A, 0))","v":"First Select Zone Application Type"},null,null,{"$f":"INDEX(Config!$E:$E, MATCH($G104, Config!$A:$A, 0))","v":"First Select Zone Application Type"},null,{"$f":"INDEX(Config!$G:$G, MATCH($G104, Config!$A:$A, 0))","v":"First Select Zone Application Type"},{"$nulls":3},"077",{"$nulls":3},"077"]
[{"$nulls":5},"8-8","PLEASE SELECT",{"$f":"INDEX(Config!$B:$B, MATCH($G105, Config!$A:$A, 0))","v":"First Select Zone Application Type"},{"$nulls":3},{"$f":"INDEX(Config!$D:$D, MATCH($G105, Config!$A:$A, 0))","v":"First Select Zone Application Type"},null,null,{"$f":"INDEX(Config!$E:$E, MATCH($G105, Config!$A:$A, 0))","v":"First Select Zone Application Type"},null,{"$f":"INDEX(Config!$G:$G, MATCH($G105, Config!$A:$A, 0))","v":"First Select Zone Application Type"},{"$nulls":3},"078",{"$nulls":3},"078"]
[{"$nulls":4},"ClimateSync 9","9-1","PLEASE SELECT",{"$f":"INDEX(Config!$B:$B, MATCH($G106, Config!$A:$A, 0))","v":"First Select Zone Application Type"},{"$nulls":3},{"$f":"INDEX(Config!$D:$D, MATCH($G106, Config!$A:$A, 0))","v":"First Select Zone Application Type"},null,null,{"$f":"INDEX(Config!$E:$E, MATCH($G106, Config!$A:$A, 0))","v":"First Select Zone Application Type"},null,{"$f":"INDEX(Config!$G:$G, MATCH($G106, Config!$A:$A, 0))","v":"First Select Zone Application Type"},{"$nulls":3},"081",{"$nulls":3},"081"]
[{"$nulls":5},"9-2","PLEASE SELECT",{"$f":"INDEX(Config!$B:$B, MATCH($G107, Config!$A:$A, 0))","v":"First Select Zone Application Type"},{"$nulls":3},{"$f":"INDEX(Config!$D:$D, MATCH($G107, Config!$A:$A, 0))","v":"First Select Zone Application Type"},null,null,{"$f":"INDEX(Config!$E:$E, MATCH($G107, Config!$A:$A, 0))","v":"First Select Zone Application Type"},null,{"$f":"INDEX(Config!$G:$G, MATCH($G107, Config!$A:$A, 0))","v":"First Select Zone Application Type"},{"$nulls":3},"082",{"$nulls":3},"082"]
[{"$nulls":5},"9-3","PLEASE SELECT",{"$f":"INDEX(Config!$B:$B, MATCH($G108, Config!$A:$A, 0))","v":"First Select Zone Application Type"},{"$nulls":3},{"$f":"INDEX(Config!$D:$D, MATCH($G108, Config!$A:$A, 0))","v":"First Select Zone Application Type"},null,null,{"$f":"INDEX(Config!$E:$E, MATCH($G108, Config!$A:$A, 0))","v":"First Select Zone Application Type"},null,{"$f":"INDEX(Config!$G:$G, MATCH($G108, Config!$A:$A, 0))","v":"First Select Zone Application Type"},{"$nulls":3},"083",{"$nulls":3},"083"]
[{"$nulls":5},"9-4","PLEASE SELECT",{"$f":"INDEX(Config!$B:$B, MATCH($G109, Config!$A:$A, 0))","v":"First Select Zone Application Type"},{"$nulls":3},{"$f":"INDEX(Config!$D:$D, MATCH($G109, Config!$A:$A, 0))","v":"First Select Zone Application Type"},null,null,{"$f":"INDEX(Config!$E:$E, MATCH($G109, Config!$A:$A, 0))","v":"First Select Zone Application Type"},null,{"$f":"INDEX(Config!$G:$G, MATCH($G109, Config!$A:$A, 0))","v":"First Select Zone Application Type"},{"$nulls":3},"084",{"$nulls":3},"084"]
[{"$nulls":5},"9-5","PLEASE SELECT",{"$f":"INDEX(Config!$B:$B, MATCH($G110, Config!$A:$A, 0))","v":"First Select Zone Application Type"},{"$nulls":3},{"$f":"INDEX(Config!$D:$D, MATCH($G110, Config!$A:$A, 0))","v":"First Select Zone Application Type"},null,null,{"$f":"INDEX(Config!$E:$E, MATCH($G110, Config!$A:$A, 0))","v":"First Select Zone Application Type"},null,{"$f":"INDEX(Config!$G:$G, MATCH($G110, Config!$A:$A, 0))","v":"First Select Zone Application Type"},{"$nulls":3},"085",{"$nulls":3},"085"]
[{"$nulls":5},"9-6","PLEASE SELECT",{"$f":"INDEX(Config!$B:$B, MATCH($G111, Config!$A:$A, 0))","v":"First Select Zone Application Type"},{"$nulls":3},{"$f":"INDEX(Config!$D:$D, MATCH($G111, Config!$A:$A, 0))","v":"First Select Zone Application Type"},null,null,{"$f":"INDEX(Config!$E:$E, MATCH($G111, Config!$A:$A, 0))","v":"First Select Zone Application Type"},null,{"$f":"INDEX(Config!$G:$G, MATCH($G111, Config!$A:$A, 0))","v":"First Select Zone Application Type"},{"$nulls":3},"086",{"$nulls":3},"086"]
[{"$nulls":5},"9-7","PLEASE SELECT",{"$f":"INDEX(Config!$B:$B, MATCH($G112, Config!$A:$A, 0))","v":"First Select Zone Application Type"},{"$nulls":3},{"$f":"INDEX(Config!$D:$D, MATCH($G112, Config!$A:$A, 0))","v":"First Select Zone Application Type"},null,null,{"$f":"INDEX(Config!$E:$E, MATCH($G112, Config!$A:$A, 0))","v":"First Select Zone Application Type"},null,{"$f":"INDEX(Config!$G:$G, MATCH($G112, Config!$A:$A, 0))","v":"First Select Zone Application Type"},{"$nulls":3},"087",{"$nulls":3},"087"]
[{"$nulls":5},"9-8","PLEASE SELECT",{"$f":"INDEX(Config!$B:$B, MATCH($G113, Config!$A:$A, 0))","v":"First Select Zone Application Type"},{"$nulls":3},{"$f":"INDEX(Config!$D:$D, MATCH($G113, Config!$A:$A, 0))","v":"First Select Zone Application Type"},null,null,{"$f":"INDEX(Config!$E:$E, MATCH($G113, Config!$A:$A, 0))","v":"First Select Zone Application Type"},null,{"$f":"INDEX(Config!$G:$G, MATCH($G113, Config!$A:$A, 0))","v":"First Select Zone Application Type"},{"$nulls":3},"088",{"$nulls":3},"088"]
[{"$nulls":4},"ClimateSync 10","10-1","PLEASE SELECT",{"$f":"INDEX(Config!$B:$B, MATCH($G114, Config!$A:$A, 0))","v":"First Select Zone Application Type"},{"$nulls":3},{"$f":"INDEX(Config!$D:$D, MATCH($G114, Config!$A:$A, 0))","v":"First Select Zone Application Type"},null,null,{"$f":"INDEX(Config!$E:$E, MATCH($G114, Config!$A:$A, 0))","v":"First Select Zone Application Type"},null,{"$f":"INDEX(Config!$G:$G, MATCH($G114, Config!$A:$A, 0))","v":"First Select Zone Application Type"},{"$nulls":3},"091",{"$nulls":3},"091"]
[{"$nulls":5},"10-2","PLEASE SELECT",{"$f":"INDEX(Config!$B:$B, MATCH($G115, Config!$A:$A, 0))","v":"First Select Zone Application Type"},{"$nulls":3},{"$f":"INDEX(Config!$D:$D, MATCH($G115, Config!$A:$A, 0))","v":"First Select Zone Application Type"},null,null,{"$f":"INDEX(Config!$E:$E, MATCH($G115, Config!$A:$A, 0))","v":"First Select Zone Application Type"},null,{"$f":"INDEX(Config!$G:$G, MATCH($G115, Config!$A:$A, 0))","v":"First Select Zone Application Type"},{"$nulls":3},"092",{"$nulls":3},"092"]
[{"$nulls":5},"10-3","PLEASE SELECT",{"$f":"INDEX(Config!$B:$B, MATCH($G116, Config!$A:$A, 0))","v":"First Select Zone Application Type"},{"$nulls":3},{"$f":"INDEX(Config!$D:$D, MATCH($G116, Config!$A:$A, 0))","v":"First Select Zone Application Type"},null,null,{"$f":"INDEX(Config!$E:$E, MATCH($G116, Config!$A:$A, 0))","v":"First Select Zone Application Type"},null,{"$f":"INDEX(Config!$G:$G, MATCH($G116, Config!$A:$A, 0))","v":"First Select Zone Application Type"},{"$nulls":3},"093",{"$nulls":3},"093"]
[{"$nulls":5},"10-4","PLEASE SELECT",{"$f":"INDEX(Config!$B:$B, MATCH($G117, Config!$A:$A, 0))","v":"First Select Zone Application Type"},{"$nulls":3},{"$f":"INDEX(Config!$D:$D, MATCH($G117, Config!$A:$A, 0))","v":"First Select Zone Application Type"},null,null,{"$f":"INDEX(Config!$E:$E, MATCH($G117, Config!$A:$A, 0))","v":"First Select Zone Application Type"},null,{"$f":"INDEX(Config!$G:$G, MATCH($G117, Config!$A:$A, 0))","v":"First Select Zone Application Type"},{"$nulls":3},"094",{"$nulls":3},"094"]
[{"$nulls":5},"10-5","PLEASE SELECT",{"$f":"INDEX(Config!$B:$B, MATCH($G118, Config!$A:$A, 0))","v":"First Select Zone Application Type"},{"$nulls":3},{"$f":"INDEX(Config!$D:$D, MATCH($G118, Config!$A:$A, 0))","v":"First Select Zone Application Type"},null,null,{"$f":"INDEX(Config!$E:$E, MATCH($G118, Config!$A:$A, 0))","v":"First Select Zone Application Type"},null,{"$f":"INDEX(Config!$G:$G, MATCH($G118, Config!$A:$A, 0))","v":"First Select Zone Application Type"},{"$nulls":3},"095",{"$nulls":3},"095"]
[{"$nulls":5},"10-6","PLEASE SELECT",{"$f":"INDEX(Config!$B:$B, MATCH($G119, Config!$A:$A, 0))","v":"First Select Zone Application Type"},{"$nulls":3},{"$f":"INDEX(Config!$D:$D, MATCH($G119, Config!$A:$A, 0))","v":"First Select Zone Application Type"},null,null,{"$f":"INDEX(Config!$E:$E, MATCH($G119, Config!$A:$A, 0))","v":"First Select Zone Application Type"},null,{"$f":"INDEX(Config!$G:$G, MATCH($G119, Config!$A:$A, 0))","v":"First Select Zone Application Type"},{"$nulls":3},"096",{"$nulls":3},"096"]
[{"$nulls":5},"10-7","PLEASE SELECT",{"$f":"INDEX(Config!$B:$B, MATCH($G120, Config!$A:$A, 0))","v":"First Select Zone Application Type"},{"$nulls":3},{"$f":"INDEX(Config!$D:$D, MATCH($G120, Config!$A:$A, 0))","v":"First Select Zone Application Type"},null,null,{"$f":"INDEX(Config!$E:$E, MATCH($G120, Config!$A:$A, 0))","v":"First Select Zone Application Type"},null,{"$f":"INDEX(Config!$G:$G, MATCH($G120, Config!$A:$A, 0))","v":"First Select Zone Application Type"},{"$nulls":3},"097",{"$nulls":3},"097"]
[{"$nulls":5},"10-8","PLEASE SELECT",{"$f":"INDEX(Config!$B:$B, MATCH($G121, Config!$A:$A, 0))","v":"First Select Zone Application Type"},{"$nulls":3},{"$f":"INDEX(Config!$D:$D, MATCH($G121, Config!$A:$A, 0))","v":"First Select Zone Application Type"},null,null,{"$f":"INDEX(Config!$E:$E, MATCH($G121, Config!$A:$A, 0))","v":"First Select Zone Application Type"},null,{"$f":"INDEX(Config!$G:$G, MATCH($G121, Config!$A:$A, 0))","v":"First Select Zone Application Type"},{"$nulls":3},"098",{"$nulls":3},"098"]
[{"$nulls":4},"ClimateSync 11","11-1","PLEASE SELECT",{"$f":"INDEX(Config!$B:$B, MATCH($G122, Config!$A:$A, 0))","v":"First Select Zone Application Type"},{"$nulls":3},{"$f":"INDEX(Config!$D:$D, MATCH($G122, Config!$A:$A, 0))","v":"First Select Zone Application Type"},null,null,{"$f":"INDEX(Config!$E:$E, MATCH($G122, Config!$A:$A, 0))","v":"First Select Zone Application Type"},null,{"$f":"INDEX(Config!$G:$G, MATCH($G122, Config!$A:$A, 0))","v":"First Select Zone Application Type"},{"$nulls":3},101,{"$nulls":3},101]
[{"$nulls":5},"11-2","PLEASE SELECT",{"$f":"INDEX(Config!$B:$B, MATCH($G123, Config!$A:$A, 0))","v":"First Select Zone Application Type"},{"$nulls":3},{"$f":"INDEX(Config!$D:$D, MATCH($G123, Config!$A:$A, 0))","v":"First Select Zone Application Type"},null,null,{"$f":"INDEX(Config!$E:$E, MATCH($G123, Config!$A:$A, 0))","v":"First Select Zone Application Type"},null,{"$f":"INDEX(Config!$G:$G, MATCH($G123, Config!$A:$A, 0))","v":"First Select Zone Application Type"},{"$nulls":3},102,{"$nulls":3},102]
[{"$nulls":5},"11-3","PLEASE SELECT",{"$f":"INDEX(Config!$B:$B, MATCH($G124, Config!$A:$A, 0))","v":"First Select Zone Application Type"},{"$nulls":3},{"$f":"INDEX(Config!$D:$D, MATCH($G124, Config!$A:$A, 0))","v":"First Select Zone Application Type"},null,null,{"$f":"INDEX(Config!$E:$E, MATCH($G124, Config!$A:$A, 0))","v":"First Select Zone Application Type"},null,{"$f":"INDEX(Config!$G:$G, MATCH($G124, Config!$A:$A, 0))","v":"First Select Zone Application Type"},{"$nulls":3},103,{"$nulls":3},103]
[{"$nulls":5},"11-4","PLEASE SELECT",{"$f":"INDEX(Config!$B:$B, MATCH($G125, Config!$A:$A, 0))","v":"First Select Zone Application Type"},{"$nulls":3},{"$f":"INDEX(Config!$D:$D, MATCH($G125, Config!$A:$A, 0))","v":"First Select Zone Application Type"},null,null,{"$f":"INDEX(Config!$E:$E, MATCH($G125, Config!$A:$A, 0))","v":"First Select Zone Application Type"},null,{"$f":"INDEX(Config!$G:$G, MATCH($G125, Config!$A:$A, 0))","v":"First Select Zone Application Type"},{"$nulls":3},104,{"$nulls":3},104]
[{"$nulls":5},"11-5","PLEASE SELECT",{"$f":"INDEX(Config!$B:$B, MATCH($G126, Config!$A:$A, 0))","v":"First Select Zone Application Type"},{"$nulls":3},{"$f":"INDEX(Config!$D:$D, MATCH($G126, Config!$A:$A, 0))","v":"First Select Zone Application Type"},null,null,{"$f":"INDEX(Config!$E:$E, MATCH($G126, Config!$A:$A, 0))","v":"First Select Zone Application Type"},null,{"$f":"INDEX(Config!$G:$G, MATCH($G126, Config!$A:$A, 0))","v":"First Select Zone Application Type"},{"$nulls":3},105,{"$nulls":3},105]
[{"$nulls":5},"11-6","PLEASE SELECT",{"$f":"INDEX(Config!$B:$B, MATCH($G127, Config!$A:$A, 0))","v":"First Select Zone Application Type"},{"$nulls":3},{"$f":"INDEX(Config!$D:$D, MATCH($G127, Config!$A:$A, 0))","v":"First Select Zone Application Type"},null,null,{"$f":"INDEX(Config!$E:$E, MATCH($G127, Config!$A:$A, 0))","v":"First Select Zone Application Type"},null,{"$f":"INDEX(Config!$G:$G, MATCH($G127, Config!$A:$A, 0))","v":"First Select Zone Application Type"},{"$nulls":3},106,{"$nulls":3},106]
[{"$nulls":5},"11-7","PLEASE SELECT",{"$f":"INDEX(Config!$B:$B, MATCH($G128, Config!$A:$A, 0))","v":"First Select Zone Application Type"},{"$nulls":3},{"$f":"INDEX(Config!$D:$D, MATCH($G128, Config!$A:$A, 0))","v":"First Select Zone Application Type"},null,null,{"$f":"INDEX(Config!$E:$E, MATCH($G128, Config!$A:$A, 0))","v":"First Select Zone Application Type"},null,{"$f":"INDEX(Config!$G:$G, MATCH($G128, Config!$A:$A, 0))","v":"First Select Zone Application Type"},{"$nulls":3},107,{"$nulls":3},107]
[{"$nulls":5},"11-8","PLEASE SELECT",{"$f":"INDEX(Config!$B:$B, MATCH($G129, Config!$A:$A, 0))","v":"First Select Zone Application Type"},{"$nulls":3},{"$f":"INDEX(Config!$D:$D, MATCH($G129, Config!$A:$A, 0))","v":"First Select Zone Application Type"},null,null,{"$f":"INDEX(Config!$E:$E, MATCH($G129, Config!$A:$A, 0))","v":"First Select Zone Application Type"},null,{"$f":"INDEX(Config!$G:$G, MATCH($G129, Config!$A:$A, 0))","v":"First Select Zone Application Type"},{"$nulls":3},108,{"$nulls":3},108]
[{"$nulls":4},"ClimateSync 12","12-1","PLEASE SELECT",{"$f":"INDEX(Config!$B:$B, MATCH($G130, Config!$A:$A, 0))","v":"First Select Zone Application Type"},{"$nulls":3},{"$f":"INDEX(Config!$D:$D, MATCH($G130, Config!$A:$A, 0))","v":"First Select Zone Application Type"},null,null,{"$f":"INDEX(Config!$E:$E, MATCH($G130, Config!$A:$A, 0))","v":"First Select Zone Application Type"},null,{"$f":"INDEX(Config!$G:$G, MATCH($G130, Config!$A:$A, 0))","v":"First Select Zone Application Type"},{"$nulls":3},111,{"$nulls":3},111]
[{"$nulls":5},"12-2","PLEASE SELECT",{"$f":"INDEX(Config!$B:$B, MATCH($G131, Config!$A:$A, 0))","v":"First Select Zone Application Type"},{"$nulls":3},{"$f":"INDEX(Config!$D:$D, MATCH($G131, Config!$A:$A, 0))","v":"First Select Zone Application Type"},null,null,{"$f":"INDEX(Config!$E:$E, MATCH($G131, Config!$A:$A, 0))","v":"First Select Zone Application Type"},null,{"$f":"INDEX(Config!$G:$G, MATCH($G131, Config!$A:$A, 0))","v":"First Select Zone Application Type"},{"$nulls":3},112,{"$nulls":3},112]
[{"$nulls":5},"12-3","PLEASE SELECT",{"$f":"INDEX(Config!$B:$B, MATCH($G132, Config!$A:$A, 0))","v":"First Select Zone Application Type"},{"$nulls":3},{"$f":"INDEX(Config!$D:$D, MATCH($G132, Config!$A:$A, 0))","v":"First Select Zone Application Type"},null,null,{"$f":"INDEX(Config!$E:$E, MATCH($G132, Config!$A:$A, 0))","v":"First Select Zone Application Type"},null,{"$f":"INDEX(Config!$G:$G, MATCH($G132, Config!$A:$A, 0))","v":"First Select Zone Application Type"},{"$nulls":3},113,{"$nulls":3},113]
[{"$nulls":5},"12-4","PLEASE SELECT",{"$f":"INDEX(Config!$B:$B, MATCH($G133, Config!$A:$A, 0))","v":"First Select Zone Application Type"},{"$nulls":3},{"$f":"INDEX(Config!$D:$D, MATCH($G133, Config!$A:$A, 0))","v":"First Select Zone Application Type"},null,null,{"$f":"INDEX(Config!$E:$E, MATCH($G133, Config!$A:$A, 0))","v":"First Select Zone Application Type"},null,{"$f":"INDEX(Config!$G:$G, MATCH($G133, Config!$A:$A, 0))","v":"First Select Zone Application Type"},{"$nulls":3},114,{"$nulls":3},114]
[{"$nulls":5},"12-5","PLEASE SELECT",{"$f":"INDEX(Config!$B:$B, MATCH($G134, Config!$A:$A, 0))","v":"First Select Zone Application Type"},{"$nulls":3},{"$f":"INDEX(Config!$D:$D, MATCH($G134, Config!$A:$A, 0))","v":"First Select Zone Application Type"},null,null,{"$f":"INDEX(Config!$E:$E, MATCH($G134, Config!$A:$A, 0))","v":"First Select Zone Application Type"},null,{"$f":"INDEX(Config!$G:$G, MATCH($G134, Config!$A:$A, 0))","v":"First Select Zone Application Type"},{"$nulls":3},115,{"$nulls":3},115]
[{"$nulls":5},"12-6","PLEASE SELECT",{"$f":"INDEX(Config!$B:$B, MATCH($G135, Config!$A:$A, 0))","v":"First Select Zone Application Type"},{"$nulls":3},{"$f":"INDEX(Config!$D:$D, MATCH($G135, Config!$A:$A, 0))","v":"First Select Zone Application Type"},null,null,{"$f":"INDEX(Config!$E:$E, MATCH($G135, Config!$A:$A, 0))","v":"First Select Zone Application Type"},null,{"$f":"INDEX(Config!$G:$G, MATCH($G135, Config!$A:$A, 0))","v":"First Select Zone Application Type"},{"$nulls":3},116,{"$nulls":3},116]
[{"$nulls":5},"12-7","PLEASE SELECT",{"$f":"INDEX(Config!$B:$B, MATCH($G136, Config!$A:$A, 0))","v":"First Select Zone Application Type"},{"$nulls":3},{"$f":"INDEX(Config!$D:$D, MATCH($G136, Config!$A:$A, 0))","v":"First Select Zone Application Type"},null,null,{"$f":"INDEX(Config!$E:$E, MATCH($G136, Config!$A:$A, 0))","v":"First Select Zone Application Type"},null,{"$f":"INDEX(Config!$G:$G, MATCH($G136, Config!$A:$A, 0))","v":"First Select Zone Application Type"},{"$nulls":3},117,{"$nulls":3},117]
[{"$nulls":5},"12-8","PLEASE SELECT",{"$f":"INDEX(Config!$B:$B, MATCH($G137, Config!$A:$A, 0))","v":"First Select Zone Application Type"},{"$nulls":3},{"$f":"INDEX(Config!$D:$D, MATCH($G137, Config!$A:$A, 0))","v":"First Select Zone Application Type"},null,null,{"$f":"INDEX(Config!$E:$E, MATCH($G137, Config!$A:$A, 0))","v":"First Select Zone Application Type"},null,{"$f":"INDEX(Config!$G:$G, MATCH($G137, Config!$A:$A, 0))","v":"First Select Zone Application Type"},{"$nulls":3},118,{"$nulls":3},118]
[{"$nulls":4},"ClimateSync 13","13-1","PLEASE SELECT",{"$f":"INDEX(Config!$B:$B, MATCH($G138, Config!$A:$A, 0))","v":"First Select Zone Application Type"},{"$nulls":3},{"$f":"INDEX(Config!$D:$D, MATCH($G138, Config!$A:$A, 0))","v":"First Select Zone Application Type"},null,null,{"$f":"INDEX(Config!$E:$E, MATCH($G138, Config!$A:$A, 0))","v":"First Select Zone Application Type"},null,{"$f":"INDEX(Config!$G:$G, MATCH($G138, Config!$A:$A, 0))","v":"First Select Zone Application Type"},{"$nulls":3},121,{"$nulls":3},121]
[{"$nulls":5},"13-2","PLEASE SELECT",{"$f":"INDEX(Config!$B:$B, MATCH($G139, Config!$A:$A, 0))","v":"First Select Zone Application Type"},{"$nulls":3},{"$f":"INDEX(Config!$D:$D, MATCH($G139, Config!$A:$A, 0))","v":"First Select Zone Application Type"},null,null,{"$f":"INDEX(Config!$E:$E, MATCH($G139, Config!$A:$A, 0))","v":"First Select Zone Application Type"},null,{"$f":"INDEX(Config!$G:$G, MATCH($G139, Config!$A:$A, 0))","v":"First Select Zone Application Type"},{"$nulls":3},122,{"$nulls":3},122]
[{"$nulls":5},"13-3","PLEASE SELECT",{"$f":"INDEX(Config!$B:$B, MATCH($G140, Config!$A:$A, 0))","v":"First Select Zone Application Type"},{"$nulls":3},{"$f":"INDEX(Config!$D:$D, MATCH($G140, Config!$A:$A, 0))","v":"First Select Zone Application Type"},null,null,{"$f":"INDEX(Config!$E:$E, MATCH($G140, Config!$A:$A, 0))","v":"First Select Zone Application Type"},null,{"$f":"INDEX(Config!$G:$G, MATCH($G140, Config!$A:$A, 0))","v":"First Select Zone Application Type"},{"$nulls":3},123,{"$nulls":3},123]
[{"$nulls":5},"13-4","PLEASE SELECT",{"$f":"INDEX(Config!$B:$B, MATCH($G141, Config!$A:$A, 0))","v":"First Select Zone Application Type"},{"$nulls":3},{"$f":"INDEX(Config!$D:$D, MATCH($G141, Config!$A:$A, 0))","v":"First Select Zone Application Type"},null,null,{"$f":"INDEX(Config!$E:$E, MATCH($G141, Config!$A:$A, 0))","v":"First Select Zone Application Type"},null,{"$f":"INDEX(Config!$G:$G, MATCH($G141, Config!$A:$A, 0))","v":"First Select Zone Application Type"},{"$nulls":3},124,{"$nulls":3},124]
[{"$nulls":5},"13-5","PLEASE SELECT",{"$f":"INDEX(Config!$B:$B, MATCH($G142, Config!$A:$A, 0))","v":"First Select Zone Application Type"},{"$nulls":3},{"$f":"INDEX(Config!$D:$D, MATCH($G142, Config!$A:$A, 0))","v":"First Select Zone Application Type"},null,null,{"$f":"INDEX(Config!$E:$E, MATCH($G142, Config!$A:$A, 0))","v":"First Select Zone Application Type"},null,{"$f":"INDEX(Config!$G:$G, MATCH($G142, Config!$A:$A, 0))","v":"First Select Zone Application Type"},{"$nulls":3},125,{"$nulls":3},125]
[{"$nulls":5},"13-6","PLEASE SELECT",{"$f":"INDEX(Config!$B:$B, MATCH($G143, Config!$A:$A, 0))","v":"First Select Zone Application Type"},{"$nulls":3},{"$f":"INDEX(Config!$D:$D, MATCH($G143, Config!$A:$A, 0))","v":"First Select Zone Application Type"},null,null,{"$f":"INDEX(Config!$E:$E, MATCH($G143, Config!$A:$A, 0))","v":"First Select Zone Application Type"},null,{"$f":"INDEX(Config!$G:$G, MATCH($G143, Config!$A:$A, 0))","v":"First Select Zone Application Type"},{"$nulls":3},126,{"$nulls":3},126]
[{"$nulls":5},"13-7","PLEASE SELECT",{"$f":"INDEX(Config!$B:$B, MATCH($G144, Config!$A:$A, 0))","v":"First Select Zone Application Type"},{"$nulls":3},{"$f":"INDEX(Config!$D:$D, MATCH($G144, Config!$A:$A, 0))","v":"First Select Zone Application Type"},null,null,{"$f":"INDEX(Config!$E:$E, MATCH($G144, Config!$A:$A, 0))","v":"First Select Zone Application Type"},null,{"$f":"INDEX(Config!$G:$G, MATCH($G144, Config!$A:$A, 0))","v":"First Select Zone Application Type"},{"$nulls":3},127,{"$nulls":3},127]
[{"$nulls":5},"13-8","PLEASE SELECT",{"$f":"INDEX(Config!$B:$B, MATCH($G145, Config!$A:$A, 0))","v":"First Select Zone Application Type"},{"$nulls":3},{"$f":"INDEX(Config!$D:$D, MATCH($G145, Config!$A:$A, 0))","v":"First Select Zone Application Type"},null,null,{"$f":"INDEX(Config!$E:$E, MATCH($G145, Config!$A:$A, 0))","v":"First Select Zone Application Type"},null,{"$f":"INDEX(Config!$G:$G, MATCH($G145, Config!$A:$A, 0))","v":"First Select Zone Application Type"},{"$nulls":3},128,{"$nulls":3},128]
[{"$nulls":4},"ClimateSync 14","14-1","PLEASE SELECT",{"$f":"INDEX(Config!$B:$B, MATCH($G146, Config!$A:$A, 0))","v":"First Select Zone Application Type"},{"$nulls":3},{"$f":"INDEX(Config!$D:$D, MATCH($G146, Config!$A:$A, 0))","v":"First Select Zone Application Type"},null,null,{"$f":"INDEX(Config!$E:$E, MATCH($G146, Config!$A:$A, 0))","v":"First Select Zone Application Type"},null,{"$f":"INDEX(Config!$G:$G, MATCH($G146, Config!$A:$A, 0))","v":"First Select Zone Application Type"},{"$nulls":3},131,{"$nulls":3},131]
[{"$nulls":5},"14-2","PLEASE SELECT",{"$f":"INDEX(Config!$B:$B, MATCH($G147, Config!$A:$A, 0))","v":"First Select Zone Application Type"},{"$nulls":3},{"$f":"INDEX(Config!$D:$D, MATCH($G147, Config!$A:$A, 0))","v":"First Select Zone Application Type"},null,null,{"$f":"INDEX(Config!$E:$E, MATCH($G147, Config!$A:$A, 0))","v":"First Select Zone Application Type"},null,{"$f":"INDEX(Config!$G:$G, MATCH($G147, Config!$A:$A, 0))","v":"First Select Zone Application Type"},{"$nulls":3},132,{"$nulls":3},132]
[{"$nulls":5},"14-3","PLEASE SELECT",{"$f":"INDEX(Config!$B:$B, MATCH($G148, Config!$A:$A, 0))","v":"First Select Zone Application Type"},{"$nulls":3},{"$f":"INDEX(Config!$D:$D, MATCH($G148, Config!$A:$A, 0))","v":"First Select Zone Application Type"},null,null,{"$f":"INDEX(Config!$E:$E, MATCH($G148, Config!$A:$A, 0))","v":"First Select Zone Application Type"},null,{"$f":"INDEX(Config!$G:$G, MATCH($G148, Config!$A:$A, 0))","v":"First Select Zone Application Type"},{"$nulls":3},133,{"$nulls":3},133]
[{"$nulls":5},"14-4","PLEASE SELECT",{"$f":"INDEX(Config!$B:$B, MATCH($G149, Config!$A:$A, 0))","v":"First Select Zone Application Type"},{"$nulls":3},{"$f":"INDEX(Config!$D:$D, MATCH($G149, Config!$A:$A, 0))","v":"First Select Zone Application Type"},null,null,{"$f":"INDEX(Config!$E:$E, MATCH($G149, Config!$A:$A, 0))","v":"First Select Zone Application Type"},null,{"$f":"INDEX(Config!$G:$G, MATCH($G149, Config!$A:$A, 0))","v":"First Select Zone Application Type"},{"$nulls":3},134,{"$nulls":3},134]
[{"$nulls":5},"14-5","PLEASE SELECT",{"$f":"INDEX(Config!$B:$B, MATCH($G150, Config!$A:$A, 0))","v":"First Select Zone Application Type"},{"$nulls":3},{"$f":"INDEX(Config!$D:$D, MATCH($G150, Config!$A:$A, 0))","v":"First Select Zone Application Type"},null,null,{"$f":"INDEX(Config!$E:$E, MATCH($G150, Config!$A:$A, 0))","v":"First Select Zone Application Type"},null,{"$f":"INDEX(Config!$G:$G, MATCH($G150, Config!$A:$A, 0))","v":"First Select Zone Application Type"},{"$nulls":3},135,{"$nulls":3},135]
[{"$nulls":5},"14-6","PLEASE SELECT",{"$f":"INDEX(Config!$B:$B, MATCH($G151, Config!$A:$A, 0))","v":"First Select Zone Application Type"},{"$nulls":3},{"$f":"INDEX(Config!$D:$D, MATCH($G151, Config!$A:$A, 0))","v":"First Select Zone Application Type"},null,null,{"$f":"INDEX(Config!$E:$E, MATCH($G151, Config!$A:$A, 0))","v":"First Select Zone Application Type"},null,{"$f":"INDEX(Config!$G:$G, MATCH($G151, Config!$A:$A, 0))","v":"First Select Zone Application Type"},{"$nulls":3},136,{"$nulls":3},136]
[{"$nulls":5},"14-7","PLEASE SELECT",{"$f":"INDEX(Config!$B:$B, MATCH($G152, Config!$A:$A, 0))","v":"First Select Zone Application Type"},{"$nulls":3},{"$f":"INDEX(Config!$D:$D, MATCH($G152, Config!$A:$A, 0))","v":"First Select Zone Application Type"},null,null,{"$f":"INDEX(Config!$E:$E, MATCH($G152, Config!$A:$A, 0))","v":"First Select Zone Application Type"},null,{"$f":"INDEX(Config!$G:$G, MATCH($G152, Config!$A:$A, 0))","v":"First Select Zone Application Type"},{"$nulls":3},137,{"$nulls":3},137]
[{"$nulls":5},"14-8","PLEASE SELECT",{"$f":"INDEX(Config!$B:$B, MATCH($G153, Config!$A:$A, 0))","v":"First Select Zone Application Type"},{"$nulls":3},{"$f":"INDEX(Config!$D:$D, MATCH($G153, Config!$A:$A, 0))","v":"First Select Zone Application Type"},null,null,{"$f":"INDEX(Config!$E:$E, MATCH($G153, Config!$A:$A, 0))","v":"First Select Zone Application Type"},null,{"$f":"INDEX(Config!$G:$G, MATCH($G153, Config!$A:$A, 0))","v":"First Select Zone Application Type"},{"$nulls":3},138,{"$nulls":3},138]
[{"$nulls":4},"ClimateSync 15","15-1","PLEASE SELECT",{"$f":"INDEX(Config!$B:$B, MATCH($G154, Config!$A:$A, 0))","v":"First Select Zone Application Type"},{"$nulls":3},{"$f":"INDEX(Config!$D:$D, MATCH($G154, Config!$A:$A, 0))","v":"First Select Zone Application Type"},null,null,{"$f":"INDEX(Config!$E:$E, MATCH($G154, Config!$A:$A, 0))","v":"First Select Zone Application Type"},null,{"$f":"INDEX(Config!$G:$G, MATCH($G154, Config!$A:$A, 0))","v":"First Select Zone Application Type"},{"$nulls":3},141,{"$nulls":3},141]
[{"$nulls":5},"15-2","PLEASE SELECT",{"$f":"INDEX(Config!$B:$B, MATCH($G155, Config!$A:$A, 0))","v":"First Select Zone Application Type"},{"$nulls":3},{"$f":"INDEX(Config!$D:$D, MATCH($G155, Config!$A:$A, 0))","v":"First Select Zone Application Type"},null,null,{"$f":"INDEX(Config!$E:$E, MATCH($G155, Config!$A:$A, 0))","v":"First Select Zone Application Type"},null,{"$f":"INDEX(Config!$G:$G, MATCH($G155, Config!$A:$A, 0))","v":"First Select Zone Application Type"},{"$nulls":3},142,{"$nulls":3},142]
[{"$nulls":5},"15-3","PLEASE SELECT",{"$f":"INDEX(Config!$B:$B, MATCH($G156, Config!$A:$A, 0))","v":"First Select Zone Application Type"},{"$nulls":3},{"$f":"INDEX(Config!$D:$D, MATCH($G156, Config!$A:$A, 0))","v":"First Select Zone Application Type"},null,null,{"$f":"INDEX(Config!$E:$E, MATCH($G156, Config!$A:$A, 0))","v":"First Select Zone Application Type"},null,{"$f":"INDEX(Config!$G:$G, MATCH($G156, Config!$A:$A, 0))","v":"First Select Zone Application Type"},{"$nulls":3},143,{"$nulls":3},143]
[{"$nulls":5},"15-4","PLEASE SELECT",{"$f":"INDEX(Config!$B:$B, MATCH($G157, Config!$A:$A, 0))","v":"First Select Zone Application Type"},{"$nulls":3},{"$f":"INDEX(Config!$D:$D, MATCH($G157, Config!$A:$A, 0))","v":"First Select Zone Application Type"},null,null,{"$f":"INDEX(Config!$E:$E, MATCH($G157, Config!$A:$A, 0))","v":"First Select Zone Application Type"},null,{"$f":"INDEX(Config!$G:$G, MATCH($G157, Config!$A:$A, 0))","v":"First Select Zone Application Type"},{"$nulls":3},144,{"$nulls":3},144]
[{"$nulls":5},"15-5","PLEASE SELECT",{"$f":"INDEX(Config!$B:$B, MATCH($G158, Config!$A:$A, 0))","v":"First Select Zone Application Type"},{"$nulls":3},{"$f":"INDEX(Config!$D:$D, MATCH($G158, Config!$A:$A, 0))","v":"First Select Zone Application Type"},null,null,{"$f":"INDEX(Config!$E:$E, MATCH($G158, Config!$A:$A, 0))","v":"First Select Zone Application Type"},null,{"$f":"INDEX(Config!$G:$G, MATCH($G158, Config!$A:$A, 0))","v":"First Select Zone Application Type"},{"$nulls":3},145,{"$nulls":3},145]
[{"$nulls":5},"15-6","PLEASE SELECT",{"$f":"INDEX(Config!$B:$B, MATCH($G159, Config!$A:$A, 0))","v":"First Select Zone Application Type"},{"$nulls":3},{"$f":"INDEX(Config!$D:$D, MATCH($G159, Config!$A:$A, 0))","v":"First Select Zone Application Type"},null,null,{"$f":"INDEX(Config!$E:$E, MATCH($G159, Config!$A:$A, 0))","v":"First Select Zone Application Type"},null,{"$f":"INDEX(Config!$G:$G, MATCH($G159, Config!$A:$A, 0))","v":"First Select Zone Application Type"},{"$nulls":3},146,{"$nulls":3},146]
[{"$nulls":5},"15-7","PLEASE SELECT",{"$f":"INDEX(Config!$B:$B, MATCH($G160, Config!$A:$A, 0))","v":"First Select Zone Application Type"},{"$nulls":3},{"$f":"INDEX(Config!$D:$D, MATCH($G160, Config!$A:$A, 0))","v":"First Select Zone Application Type"},null,null,{"$f":"INDEX(Config!$E:$E, MATCH($G160, Config!$A:$A, 0))","v":"First Select Zone Application Type"},null,{"$f":"INDEX(Config!$G:$G, MATCH($G160, Config!$A:$A, 0))","v":"First Select Zone Application Type"},{"$nulls":3},147,{"$nulls":3},147]
[{"$nulls":5},"15-8","PLEASE SELECT",{"$f":"INDEX(Config!$B:$B, MATCH($G161, Config!$A:$A, 0))","v":"First Select Zone Application Type"},{"$nulls":3},{"$f":"INDEX(Config!$D:$D, MATCH($G161, Config!$A:$A, 0))","v":"First Select Zone Application Type"},null,null,{"$f":"INDEX(Config!$E:$E, MATCH($G161, Config!$A:$A, 0))","v":"First Select Zone Application Type"},null,{"$f":"INDEX(Config!$G:$G, MATCH($G161, Config!$A:$A, 0))","v":"First Select Zone Application Type"},{"$nulls":3},148,{"$nulls":3},148]
[{"$nulls":4},"ClimateSync 16","16-1","PLEASE SELECT",{"$f":"INDEX(Config!$B:$B, MATCH($G162, Config!$A:$A, 0))","v":"First Select Zone Application Type"},{"$nulls":3},{"$f":"INDEX(Config!$D:$D, MATCH($G162, Config!$A:$A, 0))","v":"First Select Zone Application Type"},null,null,{"$f":"INDEX(Config!$E:$E, MATCH($G162, Config!$A:$A, 0))","v":"First Select Zone Application Type"},null,{"$f":"INDEX(Config!$G:$G, MATCH($G162, Config!$A:$A, 0))","v":"First Select Zone Application Type"},{"$nulls":3},151,{"$nulls":3},151]
[{"$nulls":5},"16-2","PLEASE SELECT",{"$f":"INDEX(Config!$B:$B, MATCH($G163, Config!$A:$A, 0))","v":"First Select Zone Application Type"},{"$nulls":3},{"$f":"INDEX(Config!$D:$D, MATCH($G163, Config!$A:$A, 0))","v":"First Select Zone Application Type"},null,null,{"$f":"INDEX(Config!$E:$E, MATCH($G163, Config!$A:$A, 0))","v":"First Select Zone Application Type"},null,{"$f":"INDEX(Config!$G:$G, MATCH($G163, Config!$A:$A, 0))","v":"First Select Zone Application Type"},{"$nulls":3},152,{"$nulls":3},152]
[{"$nulls":5},"16-3","PLEASE SELECT",{"$f":"INDEX(Config!$B:$B, MATCH($G164, Config!$A:$A, 0))","v":"First Select Zone Application Type"},{"$nulls":3},{"$f":"INDEX(Config!$D:$D, MATCH($G164, Config!$A:$A, 0))","v":"First Select Zone Application Type"},null,null,{"$f":"INDEX(Config!$E:$E, MATCH($G164, Config!$A:$A, 0))","v":"First Select Zone Application Type"},null,{"$f":"INDEX(Config!$G:$G, MATCH($G164, Config!$A:$A, 0))","v":"First Select Zone Application Type"},{"$nulls":3},153,{"$nulls":3},153]
[{"$nulls":5},"16-4","PLEASE SELECT",{"$f":"INDEX(Config!$B:$B, MATCH($G165, Config!$A:$A, 0))","v":"First Select Zone Application Type"},{"$nulls":3},{"$f":"INDEX(Config!$D:$D, MATCH($G165, Config!$A:$A, 0))","v":"First Select Zone Application Type"},null,null,{"$f":"INDEX(Config!$E:$E, MATCH($G165, Config!$A:$A, 0))","v":"First Select Zone Application Type"},null,{"$f":"INDEX(Config!$G:$G, MATCH($G165, Config!$A:$A, 0))","v":"First Select Zone Application Type"},{"$nulls":3},154,{"$nulls":3},154]
[{"$nulls":5},"16-5","PLEASE SELECT",{"$f":"INDEX(Config!$B:$B, MATCH($G166, Config!$A:$A, 0))","v":"First Select Zone Application Type"},{"$nulls":3},{"$f":"INDEX(Config!$D:$D, MATCH($G166, Config!$A:$A, 0))","v":"First Select Zone Application Type"},null,null,{"$f":"INDEX(Config!$E:$E, MATCH($G166, Config!$A:$A, 0))","v":"First Select Zone Application Type"},null,{"$f":"INDEX(Config!$G:$G, MATCH($G166, Config!$A:$A, 0))","v":"First Select Zone Application Type"},{"$nulls":3},155,{"$nulls":3},155]
[{"$nulls":5},"16-6","PLEASE SELECT",{"$f":"INDEX(Config!$B:$B, MATCH($G167, Config!$A:$A, 0))","v":"First Select Zone Application Type"},{"$nulls":3},{"$f":"INDEX(Config!$D:$D, MATCH($G167, Config!$A:$A, 0))","v":"First Select Zone Application Type"},null,null,{"$f":"INDEX(Config!$E:$E, MATCH($G167, Config!$A:$A, 0))","v":"First Select Zone Application Type"},null,{"$f":"INDEX(Config!$G:$G, MATCH($G167, Config!$A:$A, 0))","v":"First Select Zone Application Type"},{"$nulls":3},156,{"$nulls":3},156]
[{"$nulls":5},"16-7","PLEASE SELECT",{"$f":"INDEX(Config!$B:$B, MATCH($G168, Config!$A:$A, 0))","v":"First Select Zone Application Type"},{"$nulls":3},{"$f":"INDEX(Config!$D:$D, MATCH($G168, Config!$A:$A, 0))","v":"First Select Zone Application Type"},null,null,{"$f":"INDEX(Config!$E:$E, MATCH($G168, Config!$A:$A, 0))","v":"First Select Zone Application Type"},null,{"$f":"INDEX(Config!$G:$G, MATCH($G168, Config!$A:$A, 0))","v":"First Select Zone Application Type"},{"$nulls":3},157,{"$nulls":3},157]
[{"$nulls":5},"16-8","PLEASE SELECT",{"$f":"INDEX(Config!$B:$B, MATCH($G169, Config!$A:$A, 0))","v":"First Select Zone Application Type"},{"$nulls":3},{"$f":"INDEX(Config!$D:$D, MATCH($G169, Config!$A:$A, 0))","v":"First Select Zone Application Type"},null,null,{"$f":"INDEX(Config!$E:$E, MATCH($G169, Config!$A:$A, 0))","v":"First Select Zone Application Type"},null,{"$f":"INDEX(Config!$G:$G, MATCH($G169, Config!$A:$A, 0))","v":"First Select Zone Application Type"},{"$nulls":3},158,{"$nulls":3},158]